Cogmind - Beta 15 @@@ ROGUE MODE // 2025.05.30 @ 23:17:48 Player: Terminus Result: Escaped singularity! Performance ------------- Evolutions (9) 4500 Regions Visited (25) 5000 Robots Destroyed (1204) 6020 Value Destroyed (72642) 72642 Prototype IDs (365) 7300 Alien Tech Used (4) 800 Bonus (109094) 109094 TOTAL SCORE: 205356 Bonus ------- Triggered High Security 1000 High Alert Combat Kills 47003 Follower Combat Kills 3005 Network Hubs Disabled 200 Registered with UFD 300 Met Optimus in HQ 500 Met Warlord at Base 500 MAIN.C Attacked Warlord 500 Warlord Defense Kills 890 Built Enhanced Grunts 300 Met R17 at Cetus 500 Met R17 at Research 2000 Scanned by Researcher 500 Destroyed Superfortress 15000 Met Optimus at Protoforge 1000 Destroyed MAIN.C Guards 500 Met MAIN.C 5000 Destroyed MAIN.C Shell 5000 Destroyed MAIN.C 10000 Met Architect 300 Destroyed A8 300 Destroyed A6 400 Destroyed A5 500 Destroyed Architect 15000 Win 3000 Friendly Fire -4104 Cogmind --------- Core Integrity 782/1600 Matter 290/300 Energy 93/100 System Corruption 3% Temperature Cool (0) Movement Core (50) Location Near Former Tau Ceti IV Parts ------- > --- POWER (2) -------- (None) > --- PROPULSION (4) --- (None) > --- UTILITY (11) ----- (None) > --- WEAPON (8) ------- (None) > --- INVENTORY (5) ---- Experimental Cooling System Experimental Matter Compressor (192) Concept NT7 Matterbank (36) Centrium Heavy Armor Plating Peak State ------------ > --- POWER ------------ Vortex Chain Reactor > --- PROPULSION ------- High-density Centrium Heavy Treads Experimental Heavy Siege Treads > --- UTILITY ---------- Desublimator Concept Thermoelectric Network Concept Antigrav Storage Unit Experimental Targeting Computer Experimental Core Analyzer Experimental Core Analyzer Advanced Weapon Cycler Experimental Phase Shifter Centrium Heavy Armor Plating Concept Energy Mantle > --- WEAPON ----------- Heavy Quantum Rifle Heavy Quantum Rifle Concept Plasma Driver Concept Plasma Driver Overtuned Railgun Overtuned Railgun Overtuned Railgun > --- INVENTORY -------- Concept Zero-point Core Experimental Heavy Siege Treads Desublimator Experimental Cooling System Experimental Cooling System Concept Thermoelectric Network Advanced Energy Well Concept Chromion Battery Experimental Matter Compressor Concept NT7 Matterbank Concept NT7 Matterbank Centrium Heavy Armor Plating AEGIS Remote Shield Concept Matter Streamer [Rating: 272] Favorites ----------- Power Concept Zero-point Core Engine Heavy Ion Engine Power Core Concept Zero-point Core Reactor Experimental Antimatter Reactor Propulsion Experimental Heavy Siege Treads Treads Experimental Heavy Siege Treads Wheel Overtuned Huge Scrapsphere Utility Huge Storage Unit Device 0bPrime Scrap Suit Storage Huge Storage Unit Processor Experimental Core Analyzer Hackware Improved Hacking Suite Protection Medium Regenerative Plating Weapon Overtuned Coil Gun Energy Gun Enhanced Gamma Rifle Energy Cannon Concept Plasma Driver Ballistic Gun Overtuned Coil Gun Ballistic Cannon Light Cannon Launcher Grenade Launcher Special Weapon Plasma Cutter Slashing Weapon Great Axe Build | -11 -10 -10 -9 -9 -9 -9 -6 -5 -5 -5 -5 -5 -4 -4 -4 -4 -3 -3 -3 -2 -2 -2 -1 -1 -1 ------- Run | Yrd Mat Min Mat Sto Rec Scr Fac Fac Ext Cet Arc Hub Fac Upp Upp War Pro Res Tes Res Qua Frg Acc Com Ac0 Slots Evolved 18 | . . . 2 . . . 6 2 . . . . 2 . . . . 2 . 2 . . 2 . . Power 1 | . . . . . . . . . . . . . . . . . . 1 . . . . . . . Propulsion 2 | . . . . . . . 2 . . . . . . . . . . . . . . . . . . Utility 9 | . . . 1 . . . 3 2 . . . . 1 . . . . . . . . . 2 . . Weapon 6 | . . . 1 . . . 1 . . . . . 1 . . . . 1 . 2 . . . . . Parts Attached 273 | 6 8 3 13 11 . 6 28 19 10 8 4 . 13 . 1 10 . 4 10 3 5 78 7 11 15 Power 27 | 1 1 . 3 . . 2 2 2 1 . 1 . 1 . . 3 . . 2 . . 6 1 1 . Engine 10 | 1 1 . 3 . . 2 2 1 . . . . . . . . . . . . . . . . . Core 6 | . . . . . . . . 1 1 . . . 1 . . 1 . . . . . 1 1 . . Reactor 11 | . . . . . . . . . . . 1 . . . . 2 . . 2 . . 5 . 1 . Propulsion 33 | 2 . 1 4 3 . 3 7 . 2 1 . . 1 . . . . . 1 . 1 5 . 1 1 Treads 26 | 2 . 1 4 3 . . 5 . 1 1 . . 1 . . . . . 1 . 1 4 . 1 1 Leg . | . . . . . . . . . . . . . . . . . . . . . . . . . . Wheel 7 | . . . . . . 3 2 . 1 . . . . . . . . . . . . 1 . . . Hover . | . . . . . . . . . . . . . . . . . . . . . . . . . . Flight . | . . . . . . . . . . . . . . . . . . . . . . . . . . Utility 124 | 1 4 . 3 4 . . 10 10 2 2 2 . 8 . 1 6 . 3 3 2 2 40 5 9 7 Device 64 | . 2 . 1 1 . . 4 6 2 . 1 . 5 . . 3 . 2 1 2 2 21 1 5 5 Storage 8 | 1 2 . . 1 . . . . . . . . . . . . . . 2 . . 2 . . . Processor 18 | . . . . . . . 1 1 . . . . 1 . 1 3 . 1 . . . 5 2 1 2 Hackware 3 | . . . . . . . 1 . . . 1 . 1 . . . . . . . . . . . . Protection 31 | . . . 2 2 . . 4 3 . 2 . . 1 . . . . . . . . 12 2 3 . Artifact . | . . . . . . . . . . . . . . . . . . . . . . . . . . Weapon 89 | 2 3 2 3 4 . 1 9 7 5 5 1 . 3 . . 1 . 1 4 1 2 27 1 . 7 Energy Gun 6 | . . . . . . . . . . . . . . . . 1 . . . . . 3 . . 2 Energy Cannon 6 | . . . . 1 . . 1 1 . . . . . . . . . . 1 . . 1 . . 1 Ballistic Gun 69 | 2 . . 3 2 . 1 7 6 4 5 1 . 3 . . . . 1 3 1 2 23 1 . 4 Ballistic Cannon 3 | . 2 1 . . . . . . . . . . . . . . . . . . . . . . . Launcher 3 | . 1 1 . 1 . . . . . . . . . . . . . . . . . . . . . Special Weapon 1 | . . . . . . . . . 1 . . . . . . . . . . . . . . . . Impact Weapon . | . . . . . . . . . . . . . . . . . . . . . . . . . . Slashing Weapon 1 | . . . . . . . 1 . . . . . . . . . . . . . . . . . . Piercing Weapon . | . . . . . . . . . . . . . . . . . . . . . . . . . . Special Melee Weapon . | . . . . . . . . . . . . . . . . . . . . . . . . . . Unidentified Prototypes 43 | . . . . 1 . . 1 2 . 4 . . 1 . . 5 . 1 7 . . 16 2 2 1 Corrupted Parts 8 | . . . . . . . . . . 4 . . . . . . . . . . . 4 . . . System Corruption 30 | . . . . . . . . . . 10 . . . . . . . . . . . 20 . . . Parts Lost 86 | . . . 1 2 . . 19 2 . . . . 3 . . . . 1 2 . 1 35 2 2 16 Power 6 | . . . . . . . . . . . . . 1 . . . . . 2 . . 3 . . . Propulsion 8 | . . . . . . . 5 1 . . . . . . . . . . . . . 1 . . 1 Utility 33 | . . . 1 2 . . 6 1 . . . . 1 . . . . 1 . . . 12 2 2 5 Weapon 39 | . . . . . . . 8 . . . . . 1 . . . . . . . 1 19 . . 10 Highest Loss Streak 12 | . . . 1 2 . . 5 2 . . . . 1 . . . . 1 2 . 1 12 1 1 7 To Critical Strikes 2 | . . . . . . . . . . . . . . . . . . . . . . 1 . . 1 Average Backups 22 | . 18 25 24 24 25 24 20 21 24 22 22 22 21 22 22 21 21 21 22 22 23 22 23 22 21 Power 1 | . 1 2 1 2 2 1 1 3 2 2 2 2 1 1 1 1 2 1 1 1 2 . 2 1 1 Propulsion 1 | . 2 4 4 4 4 4 2 . 1 1 1 1 1 1 1 1 1 1 1 1 1 1 1 1 . Utility 10 | . 4 8 7 7 9 10 6 9 12 11 11 11 11 11 11 10 10 10 12 13 12 12 12 10 13 Weapon 7 | . 9 9 9 9 9 7 7 6 6 6 6 6 6 8 8 7 7 7 7 5 5 6 6 8 5 Tool/Special . | . . . . . . . . . . . . . . . . . . . . . . . . . . Unused Backups 98 | . 3 6 11 5 . 6 2 5 6 7 . . 5 . 1 3 . . 3 . 3 16 3 3 10 Power 12 | . . 1 4 . . . 2 1 1 . . . . . . . . . . . 1 . 1 . 1 Propulsion 11 | . . 1 1 3 . 2 . . . 2 . . . . . . . . . . . 2 . . . Utility 41 | . . . 1 . . 3 . 4 2 3 . . 1 . 1 1 . . . . 2 10 2 2 9 Weapon 33 | . 3 4 5 2 . 1 . . 3 2 . . 3 . . 2 . . 3 . . 4 . 1 . Tool/Special 1 | . . . . . . . . . . . . . 1 . . . . . . . . . . . . Average Slot Usage (%) 87 | . 98 100 99 99 100 98 91 86 88 83 82 82 83 84 84 82 84 84 83 81 81 84 83 83 78 Engine 3 | . 14 14 11 11 11 11 6 4 . . . . . . . . . . . . . . . . . Core 1 | . . . . . . . . . 5 5 1 . 2 5 5 1 . 4 1 . . . 4 3 . Reactor 2 | . . . . . . . . . . . 3 5 2 . . 3 5 4 5 4 4 6 4 4 3 Treads 10 | . 27 28 22 22 22 15 12 10 11 6 5 5 5 5 5 5 5 4 4 4 4 5 8 8 7 Wheel 2 | . . . . . . 4 6 5 5 5 5 5 5 5 5 5 5 4 4 4 4 2 . . . Device 14 | . 12 14 11 10 11 11 11 11 11 11 14 11 14 15 15 13 10 9 9 8 13 17 20 19 16 Storage 6 | . 14 14 10 11 11 11 6 5 5 5 5 5 5 5 5 5 5 4 4 4 4 4 4 4 3 Processor 6 | . . . . . . . 5 5 11 11 11 11 10 10 10 11 15 14 14 12 8 7 5 4 11 Hackware 1 | . . . . . . . 5 5 5 5 5 5 5 5 5 5 5 4 4 4 4 . . . . Protection 6 | . . . 10 10 11 11 6 8 5 5 2 5 5 5 5 5 5 4 3 4 4 4 6 7 4 Ballistic Gun 28 | . 10 . 32 32 33 33 25 22 22 23 23 23 26 26 26 24 26 27 27 33 33 32 31 31 28 Ballistic Cannon 1 | . 17 23 . . . . . . . . . . . . . . . . . . . . . . . Peak Build Rating 272 | 6 10 11 19 24 24 30 56 84 88 113 116 116 132 128 129 137 137 150 157 170 178 252 268 266 272 Average Rating 141 | 4 8 10 17 21 24 24 50 71 76 105 114 116 126 127 128 129 136 148 148 164 174 207 261 256 249 On Entrance 104 | . 6 9 11 18 24 24 30 46 72 88 113 116 116 128 128 129 136 137 150 151 170 175 244 262 244 Naked Turns 6 | . . . . . . . . . . . . . . . . . . . . . . . . . 6 Heaviest Build 193 | 14 92 92 101 105 105 107 117 129 130 134 139 139 149 147 147 147 141 167 168 187 188 193 140 163 164 Greatest Support 200 | 40 40 40 40 46 46 46 28 28 28 80 80 80 80 80 20 80 20 20 20 20 20 200 200 200 190 Greatest Overweight (x) 9 | 1 4 2 2 2 2 6 4 4 6 6 6 6 7 7 7 7 7 8 8 9 9 9 . . . Average Overweight (x) 4 | . 1 2 1 2 2 3 3 4 4 5 3 5 6 6 7 6 7 8 7 8 8 5 . . . Largest Inventory Capacity 25 | 8 25 25 25 25 25 25 25 25 25 25 25 25 25 25 25 25 25 25 25 25 25 25 25 25 25 Average Capacity 24 | 6 21 25 24 25 25 25 25 25 25 25 25 25 25 25 25 25 25 25 25 25 25 25 25 25 24 Most Carried 25 | 1 25 25 25 25 25 25 25 25 25 25 25 25 25 25 25 25 25 25 25 25 25 25 25 25 25 Average Carried 23 | . 18 24 24 24 25 24 22 21 24 24 25 25 24 24 24 24 24 24 24 23 24 23 24 24 23 Final Capacity 25 | 8 25 25 25 25 25 25 25 25 25 25 25 25 25 25 25 25 25 25 25 25 25 25 25 25 5 Final Carried 25 | 1 25 25 25 25 25 25 21 24 25 25 25 25 25 25 25 24 25 25 24 25 24 25 25 25 5 Class Distribution -------------------- 35% | Scavenger-Scrapper 21% | Scavenger-Tank 14% | Scavenger-Executioner 7% | Mutant 7% | Tank 4% | Scavenger-Gunner 3% | Commander-Tank Dominant Class ---------------- Mutant | -10/Materials Mutant | -10/Mines Scavenger-Tank | -9/Materials Commander-Tank | -9/Storage Tank | -9/Recycling Tank | -9/Scraptown Gunner | -6/Factory Scavenger-Tank | -5/Factory Scavenger-Tank | -5/Extension Scavenger-Tank | -5/Cetus Scavenger-Tank | -5/Archives Scavenger-Tank | -5/Hub_04(d) Scavenger-Tank | -4/Factory Scavenger-Tank | -4/Upper Caves Scavenger-Tank | -4/Upper Caves Scavenger-Tank | -4/Warlord Scavenger-Gunner | -3/Proximity Caves Scavenger-Executioner | -3/Research Scavenger-Executioner | -3/Testing Scavenger-Executioner | -2/Research Scavenger-Executioner | -2/Quarantine Scavenger-Scrapper | -2/Protoforge Scavenger-Scrapper | -1/Access Scavenger-Scrapper | -1/Command Scavenger-Scrapper | -1/Access_0 Resources | -11 -10 -10 -9 -9 -9 -9 -6 -5 -5 -5 -5 -5 -4 -4 -4 -4 -3 -3 -3 -2 -2 -2 -1 -1 -1 ----------- Run | Yrd Mat Min Mat Sto Rec Scr Fac Fac Ext Cet Arc Hub Fac Upp Upp War Pro Res Tes Res Qua Frg Acc Com Ac0 Matter Collected 74867 | 235 645 193 851 833 30 90 2367 2432 1125 360 256 547 2236 335 197 676 134 885 1323 745 2189 23652 16369 11453 4709 Remotely 43110 | . . . . . . . 251 . . . . . 1531 . . . 120 230 883 422 1565 12592 14059 10091 1366 Salvage Created 88017 | . 747 30 1355 1258 . 70 2810 2293 1290 175 302 460 2448 289 130 389 220 1161 1119 713 2534 19490 28056 18253 2425 Parts 3614 | . 48 7 80 78 . 4 129 90 57 11 19 27 112 18 8 15 13 45 59 24 151 1030 849 608 132 Haulers Intercepted 21 | . 2 . 6 6 . . 2 1 . . . . 1 . . . . 1 1 . . . 1 . . Recyclers Shooed 29 | . 3 . . 2 1 . 13 4 1 . . . 2 . . . . 3 . . . . . . . Parts Field Recycled . | . . . . . . . . . . . . . . . . . . . . . . . . . . Retrieved Matter . | . . . . . . . . . . . . . . . . . . . . . . . . . . Parts Self-Destructed 39 | . . . . . . . . . . . . . . 18 8 . 13 . . . . . . . . Prevented . | . . . . . . . . . . . . . . . . . . . . . . . . . . Kills | -11 -10 -10 -9 -9 -9 -9 -6 -5 -5 -5 -5 -5 -4 -4 -4 -4 -3 -3 -3 -2 -2 -2 -1 -1 -1 ------- Run | Yrd Mat Min Mat Sto Rec Scr Fac Fac Ext Cet Arc Hub Fac Upp Upp War Pro Res Tes Res Qua Frg Acc Com Ac0 Combat Hostiles Destroyed 1013 | . 14 5 26 16 . 1 35 15 14 1 1 4 28 5 2 6 5 9 13 6 36 278 302 166 25 Guns 987 | . 9 . 26 14 . 1 30 15 14 1 1 4 28 5 2 6 5 9 13 6 36 270 302 166 24 Cannons 2 | . 2 . . . . . . . . . . . . . . . . . . . . . . . . AOE 15 | . 3 5 . 2 . . 5 . . . . . . . . . . . . . . . . . . Classes Destroyed 32 | . 7 1 2 3 . 1 2 . 1 . . 1 . . . 3 . . 1 . . 9 1 . . Worker 49 | . . . 4 3 . . 10 6 . . . 3 1 . . . . 6 2 . . . 7 7 . Builder 38 | . 3 1 1 2 . . 1 2 6 . . 1 5 . . . . 1 . . . 1 14 . . Tunneler 4 | . 1 . . . . . 1 . 1 . . . 1 . . . . . . . . . . . . Hauler 21 | . 2 . 6 6 . . 2 1 . . . . 1 . . . . 1 1 . . . 1 . . Recycler 38 | . 2 . . 2 . . 7 9 2 . . . 4 . . . . 2 . 1 . . 7 2 . Carrier 36 | . . . . . . . . . . . . . . . . . . . . . . 1 24 11 . Mechanic 41 | . . . . 1 . . . . . . . . . . . . . . . . . 7 19 14 . Operator 13 | . . . . 2 . . 1 . . . 6 1 . . . . . . 1 . . 2 . . . Drone 63 | . . . . . . . . . . . . . . . . . . . . . . 63 . . . Watcher 33 | . 2 . 2 1 . . 4 1 1 1 . 2 3 . . . . 2 2 1 3 3 1 4 . Swarmer 78 | . 3 3 10 . . . 10 . . . . . 9 . . . 5 5 5 . 5 23 . . . Cutter 10 | . . . . . . . . . . . . . . . . . . . . . . . 10 . . Saboteur 32 | . . . . . . . . . . . . . . . . . . . . . . 3 20 9 . Grunt 288 | . 11 . 12 11 . . 16 8 9 . . . 7 . . . . . 2 . 4 28 105 75 . Brawler 60 | . . . . . . . . . . . . . . . . 2 . . . . 1 11 31 15 . Duelist 52 | . . . . 1 . . . 1 . . . . . . . 1 . . 1 . . 9 21 18 . Protector 38 | . . . . . . . . . . . . . . . . 1 . . . . . 7 22 8 . Researcher 8 | . . . . . . . . . . . . . . . . . . . 1 . . 7 . . . Sentry 46 | . . . 4 5 . . 2 1 1 . 1 2 3 1 1 . . 3 . 1 3 11 5 2 . Demolisher 4 | . . . . . . . . . . . . . . . . . . . . . . . 2 2 . Specialist 9 | . . . . . . . . . . . . 1 . . . 1 . . . . . 3 4 . . Hunter 38 | . . . . . . . 2 1 2 . . . 2 . . . . . . 5 5 12 5 4 . Programmer 107 | . . . . . . . 5 4 . . . 1 5 4 1 . . . 5 . 18 21 32 11 . Heavy 3 | . . . . . . . . . . . . . . . . . . . . . . . 1 2 . Behemoth 6 | . . . . . . . . . 1 . . . 2 . . . . 1 . . . . 2 . . Cetus Guard 1 | . . . . . . . . . . 1 . . . . . . . . . . . . . . . M Guard 2 | . . . . . . . . . . . . . . . . . . . . . . . . 2 . Enhanced Grunt 17 | . . . . . . . . . . . . . . . . . . . . . . . . . 17 Enhanced Hunter 4 | . . . . . . . . . . . . . . . . . . . . . . . . . 4 Hotshot 11 | . . . . . . . . . . . . . . . . . . . . . . 11 . . . Decapitator 10 | . . . . . . . . . . . . . . . . . . . . . . 10 . . . Immortal 12 | . . . . . . . . . . . . . . . . . . . . . . 12 . . . Overlord 1 | . . . . . . . . . . . . . . . . . . . . . . 1 . . . Combat Programmer 2 | . . . . . . . . . . . . . . . . . . . . . . . . 2 . Investigator 5 | . . . . . . . . . . . . . . . . . . . . . . . 3 2 . Striker 51 | . . . . . . . . . . . . . . . . . . . . . . 21 23 7 . Executioner 42 | . . . . . . . . . . . . . . . . 1 . . . . . 15 19 7 . Alpha 7 4 | . . . . . . . . . . . . . . . . . . . . . . 4 . . . V-Series 12 | . . . . . . . . . . . . . . . . . . . . . . 12 . . . Scrapper 2 | . . . . . . 1 . . . . . . . . . . . . . . . 1 . . . Scrapoid 7 | . . . . . . . . . . . . . . . . . . . . . . 7 . . . Assembled 2 | . . 2 . . . . . . . . . . . . . . . . . . . . . . . Thug 1 | . . . . . . . . . 1 . . . . . . . . . . . . . . . . Best Kill Streak 78 | . 4 3 4 8 . 1 12 5 10 1 4 2 7 2 1 5 5 5 6 5 6 20 78 41 5 Combat Bots Only 64 | . 3 3 4 6 . 1 7 3 5 1 1 1 5 2 1 5 5 5 5 5 6 20 64 36 5 Max Kills in Single Turn 8 | . 3 2 2 2 . 1 5 2 2 1 1 2 5 1 1 3 2 3 3 1 2 4 8 8 3 Gunslinging 3 | . . . 1 . . . 1 . . . . . 3 . . . 1 1 1 . 1 1 3 3 2 Exploded 2 | . 2 2 . 1 . . 2 . . . . . . . . . . . . . . . . . . Melee . | . . . . . . . . . . . . . . . . . . . . . . . . . . Uniques/NPCs Destroyed 8 | . . . . . . . . . . 1 . . . . . . . . . . . 1 . 2 4 A7 (-5/Cetus) Superfortress (-2/Protoforge) MAIN.C Shell (-1/Command) MAIN.C (-1/Command) A8 (-1/Access_0) A6 (-1/Access_0) A5 (-1/Access_0) Architect (-1/Access_0) Combat | -11 -10 -10 -9 -9 -9 -9 -6 -5 -5 -5 -5 -5 -4 -4 -4 -4 -3 -3 -3 -2 -2 -2 -1 -1 -1 -------- Run | Yrd Mat Min Mat Sto Rec Scr Fac Fac Ext Cet Arc Hub Fac Upp Upp War Pro Res Tes Res Qua Frg Acc Com Ac0 Hostile Shots Fired 2136 | . 44 17 77 45 6 2 297 84 42 . . 27 178 14 7 . 20 28 49 20 117 456 147 122 337 Missed 519 | . 15 7 25 10 2 1 84 18 8 . . 8 29 2 . . 1 12 4 1 23 91 30 27 121 Hits 1617 | . 29 10 52 35 4 1 213 66 34 . . 19 149 12 7 . 19 16 45 19 94 365 117 95 216 Melee 36 | . . . . . . . . . . . . . . . . . . . 5 . . 28 3 . . Projectile 1581 | . 29 10 52 35 4 1 213 66 34 . . 19 149 12 7 . 19 16 40 19 94 337 114 95 216 AOE 23 | . . . . . . . . . 1 . . . . . . . . . . . . 8 9 5 . Critical Strikes 101 | . . 1 . . . . 8 4 2 . . 1 5 2 . . . 1 2 . 7 43 8 9 8 Actively Blocked 14 | . . . . . . . . . . . . . . . . . . . . . . 8 2 3 1 Part Disruptions 3 | . . . . . . . . . . . . . . . . . . . . . 1 1 . . 1 Actively Blocked 1 | . . . . . . . . . . . . . . . . . . . . . . . . . 1 Damage Taken 31113 | . 468 113 525 400 56 40 3409 1219 562 22 . 535 2770 196 106 25 438 551 1050 415 1076 9766 1749 1537 4085 Core 2562 | . 85 33 69 13 . . 391 54 73 . . 158 234 17 28 . 67 43 . 21 48 572 16 118 522 Absorbed by Shields 11346 | . . . 59 90 . . 277 72 199 8 . 187 586 70 38 9 . . . . 1113 3095 1702 1425 2416 Reduced by Siege Mode 1430 | . . . . . . . . . . . . 15 309 . . . 13 34 45 14 43 613 151 193 . Redirected to Shielding 1306 | . . . . . . . . . . . . . . . . . . . . . . 673 364 210 59 Ignored by Resistances 58 | . . . . . . . . 58 . . . . . . . . . . . . . . . . . Regen/Repaired (Parts) 4927 | . 84 . 293 73 . . . 459 65 40 25 15 468 151 17 273 121 166 577 205 335 835 430 295 . Core Remaining (%) 69 | 100 . 52 . . . 79 54 . . . . 71 . . . . 69 . 96 . . 55 . . 48 Volleys Fired 2298 | . 52 12 69 69 4 2 126 92 44 14 17 29 72 13 5 11 5 30 38 11 64 594 444 305 176 Largest 8 | . 2 1 3 3 3 3 4 4 4 4 4 4 5 5 5 5 5 6 6 8 8 8 8 8 8 Hottest 440 | . 60 30 66 69 69 69 102 112 127 134 140 140 175 162 162 162 162 194 214 259 259 328 280 280 440 Shots Fired 13338 | . 101 12 207 201 12 6 463 312 168 54 64 111 357 65 27 39 21 142 153 88 367 3356 3446 2369 1197 Gun 13198 | . 80 . 207 198 12 6 451 296 168 54 64 111 357 65 27 39 21 142 153 88 367 3355 3444 2365 1128 Cannon 118 | . 18 . . . . . 8 16 . . . . . . . . . . . . . 1 2 4 69 Launcher 22 | . 3 12 . 3 . . 4 . . . . . . . . . . . . . . . . . . Special . | . . . . . . . . . . . . . . . . . . . . . . . . . . Kinetic 13081 | . 98 . 207 198 12 6 451 296 168 54 64 111 357 65 27 39 21 142 153 88 367 3268 3444 2365 1080 Thermal 148 | . . . . . . . 8 16 . . . . . . . . . . . . . 1 2 4 117 Explosive 22 | . 3 12 . 3 . . 4 . . . . . . . . . . . . . . . . . . Electromagnetic 87 | . . . . . . . . . . . . . . . . . . . . . . 87 . . . Robot Hit Streak 64 | . 22 2 14 9 4 3 37 28 14 15 10 17 41 19 13 14 20 36 64 22 19 53 21 26 12 Robot Miss Streak 29 | . 4 1 4 4 1 1 6 5 5 2 2 3 3 3 3 2 2 6 2 2 5 19 29 13 17 Penetration Max 2 | . . . . . . . . 1 1 1 1 1 1 . . 2 1 2 2 1 1 2 2 2 1 Secondary Targets 302 | . . . 4 2 . . 6 4 1 . . 1 9 . . . 4 3 6 . 11 63 112 70 6 Max Gunslinging Chain 3 | . . . 1 1 . . 1 1 1 . . 1 3 . . . 1 2 2 . 1 2 2 2 2 Shots Hit Robots 7377 | . 66 2 131 117 10 4 313 211 101 36 44 59 262 31 15 27 17 58 99 46 187 1840 1750 1347 604 Core Hits 3718 | . 31 8 54 53 5 2 180 85 50 15 18 23 78 10 5 16 10 38 45 24 88 885 1022 714 259 Critical Kills 298 | . . . . . . . 1 1 3 . 1 6 10 1 . . 3 4 5 2 12 90 98 51 10 Critical Parts Destroyed 430 | . . . 3 1 . . . 2 2 1 4 4 20 1 2 3 . 5 3 6 17 111 129 99 17 Critical Strikes 837 | . . . 3 1 . . 1 3 5 1 6 12 40 3 2 6 3 9 10 8 29 241 242 174 38 Meltdown 1 | . . . . . . . . . . . . . . . . . . . . . . . . . 1 Destroy 836 | . . . 3 1 . . 1 3 5 1 6 12 40 3 2 6 3 9 10 8 29 241 242 174 37 Melee Attacks 8 | . . . . . . . 5 3 . . . . . . . . . . . . . . . . . Impact . | . . . . . . . . . . . . . . . . . . . . . . . . . . Slashing 8 | . . . . . . . 5 3 . . . . . . . . . . . . . . . . . Piercing . | . . . . . . . . . . . . . . . . . . . . . . . . . . Sneak Attacks . | . . . . . . . . . . . . . . . . . . . . . . . . . . Combat Hostiles . | . . . . . . . . . . . . . . . . . . . . . . . . . . Follow-up Attacks . | . . . . . . . . . . . . . . . . . . . . . . . . . . Damage Inflicted 232665 | . 1235 429 2090 2270 176 59 6534 4159 2809 1002 1338 1777 7613 978 482 1230 515 2338 3243 1170 5832 60111 62521 44862 17892 Guns 226764 | . 783 . 2070 1985 150 59 5168 4027 2809 1002 1307 1635 7448 978 482 1230 515 2338 3241 1170 5832 60056 62516 44838 15125 Cannons 2965 | . 198 . . . . . . . . . . . . . . . . . . . . . . . 2767 Explosions 2723 | . 245 429 . 273 . . 1357 132 . . . 122 165 . . . . . . . . . . . . Melee . | . . . . . . . . . . . . . . . . . . . . . . . . . . Ramming 213 | . 9 . 20 12 26 . 9 . . . 31 20 . . . . . . 2 . . 55 5 24 . Kinetic 224425 | . 981 . 2070 1985 150 59 5168 4027 2809 1002 1307 1635 7448 978 482 1230 515 2338 3241 1170 5832 58889 62516 44838 13755 Thermal 4926 | . . . . . . . 624 . . . . . 165 . . . . . . . . . . . 4137 Explosive 1812 | . 245 429 . 273 . . 733 132 . . . . . . . . . . . . . . . . . Electromagnetic 1289 | . . . . . . . . . . . . 122 . . . . . . . . . 1167 . . . Impact . | . . . . . . . . . . . . . . . . . . . . . . . . . . Slashing . | . . . . . . . . . . . . . . . . . . . . . . . . . . Piercing . | . . . . . . . . . . . . . . . . . . . . . . . . . . Highest Corruption 41 | . . . . . . . 6 7 8 18 18 25 3 6 7 7 . . 10 . 1 41 7 10 3 Average Corruption 9 | . . . . . . . 4 5 7 14 15 22 1 5 6 7 . . 6 . 1 19 4 7 2 Corruption Purged 58 | . . . . . . . . . . . 6 . . . . . . . . . . 42 . 10 . Corruption Blocked . | . . . . . . . . . . . . . . . . . . . . . . . . . . Effects 993 | . . . . . . . 33 43 52 27 22 27 26 24 16 1 . . 47 . 7 365 125 171 7 Message Errors 208 | . . . . . . . 6 12 18 11 5 5 7 4 2 1 . . 11 . 1 64 40 19 2 Matter Fused 190 | . . . . . . . 11 7 9 5 2 9 7 4 4 . . . 13 . 3 65 15 35 1 Heat Flow Errors 88 | . . . . . . . 6 7 5 1 3 1 2 1 2 . . . 4 . 1 28 11 16 . Energy Discharges 100 | . . . . . . . 2 6 7 3 2 2 5 2 3 . . . 6 . . 32 9 21 . Parts Rejected 7 | . . . . . . . . . 1 . . . . . . . . . . . . 5 . . 1 Parts Fused 11 | . . . . . . . 2 1 1 . . . . 1 . . . . . . . 2 1 3 . Data Loss (minor) 93 | . . . . . . . 2 4 6 2 3 1 2 6 1 . . . 7 . 2 29 13 14 1 Data Loss (major) 36 | . . . . . . . 1 . 4 . 2 3 . 2 1 . . . 2 . . 11 3 7 . Misfires 21 | . . . . . . . . 1 . 1 . . . 1 2 . . . . . . . 8 6 2 Alerts 25 | . . . . . . . 2 . 1 1 1 1 . 2 1 . . . . . . 6 2 8 . Misdirections 4 | . . . . . . . . . . . . . . . . . . . . . . 4 . . . Weapon Failures 210 | . . . . . . . 1 5 . 3 4 5 3 1 . . . . 4 . . 119 23 42 . Overload Shots 1 | . . . . . . . . . . . . . . . . . . . . . . 1 . . . Effects 1 | . . . . . . . . . . . . . . . . . . . . . . 1 . . . Energy Bleed 1 | . . . . . . . . . . . . . . . . . . . . . . 1 . . . Overflow Damage 338 | . 34 18 . . . . 143 . . . 21 . 42 . . . . . . . . 2 . . 78 Projectiles 82 | . 4 . . . . . . . . . . . . . . . . . . . . . . . 78 Explosions 233 | . 30 18 . . . . 143 . . . . . 42 . . . . . . . . . . . . Melee 23 | . . . . . . . . . . . 21 . . . . . . . . . . 2 . . . Knockbacks 4 | . 2 . . . . . 1 . . . 1 . . . . . . . . . . . . . . Impact 2 | . . . . . . . 1 . . . 1 . . . . . . . . . . . . . . Kinetic 2 | . 2 . . . . . . . . . . . . . . . . . . . . . . . . Secondary . | . . . . . . . . . . . . . . . . . . . . . . . . . . Self-Inflicted Damage 536 | . 30 14 . . . . 151 . . . . 97 131 . . . . . . . . 113 . . . Shots 9 | . 1 1 . . . . 2 . . . . 1 2 . . . . . . . . 2 . . . Rammed 32 | . 5 1 7 2 5 . 2 . . . 1 3 . . . . . . 1 . . 2 2 1 . Targets Rammed 35 | . 7 1 7 3 5 . 2 . . . 1 3 . . . . . . 1 . . 2 2 1 . Kicked . | . . . . . . . . . . . . . . . . . . . . . . . . . . Crushed 3 | . 2 . . 1 . . . . . . . . . . . . . . . . . . . . . Highest Temperature 525 | . 2 . 39 76 8 2 244 525 246 201 249 308 310 333 310 206 78 440 264 192 324 442 223 197 203 Average Temperature 128 | . 2 . 14 33 8 2 82 126 58 86 74 91 73 125 120 87 34 107 62 95 95 108 169 125 133 Received Heat Transfer 2937 | . 186 . 194 149 27 12 459 285 88 . . 12 115 . . . . 416 168 18 48 505 98 157 . Effects 19 | . . . . . . . . 5 2 . . 1 2 . . . . 1 . . 2 2 . . 4 Shutdowns 3 | . . . . . . . . 1 . . . . . . . . . 1 . . . 1 . . . Energy Bleed 5 | . . . . . . . . 1 . . . . 2 . . . . . . . . 1 . . 1 Interference 7 | . . . . . . . . . 2 . . . . . . . . . . . 2 . . . 3 Matter Decay 2 | . . . . . . . . 1 . . . 1 . . . . . . . . . . . . . Short Circuit 1 | . . . . . . . . 1 . . . . . . . . . . . . . . . . . Damage (minor) 1 | . . . . . . . . 1 . . . . . . . . . . . . . . . . . Siege Activations 103 | . . . . . . . . . . 1 . 1 8 2 . . 1 3 8 2 15 38 13 11 . Total Turns 6244 | . . . . . . . . . . 26 . 15 254 27 . . 9 31 105 33 130 648 2337 2629 . Longest Duration 1293 | . . . . . . . . . . 26 . 15 60 20 . . 9 15 51 25 20 143 648 1293 . Martial Activations . | . . . . . . . . . . . . . . . . . . . . . . . . . . Shielding Activations . | . . . . . . . . . . . . . . . . . . . . . . . . . . Robots Disrupted 1 | . . . . . . . . . . . . . . . . . . . . . . 1 . . . Combat Hostiles 1 | . . . . . . . . . . . . . . . . . . . . . . 1 . . . Robots Corrupted 5 | . . . . . . . . . . . 1 . . . . . . . . . . 4 . . . Combat Hostiles 4 | . . . . . . . . . . . . . . . . . . . . . . 4 . . . Parts Fried 24 | . . . . . . . 2 . . . 2 . . . . . . . . . . 18 . 2 . Impact Corruptions 3 | . . . . . . . . . . . 2 . . . . . . . . . . 1 . . . Robots Melted 1 | . . . . . . . . . . . . . . . . . . . . . . . . . 1 Combat Hostiles 1 | . . . . . . . . . . . . . . . . . . . . . . . . . 1 Parts Melted 30 | . . . . . . 2 . . . . . . . . . . . . . . . 1 26 . 1 Heat Transferred 1551 | . . . . . . . 450 . . . . . 100 . . . . . . . . . . . 1001 Parts Sabotaged . | . . . . . . . . . . . . . . . . . . . . . . . . . . Parts Stolen . | . . . . . . . . . . . . . . . . . . . . . . . . . . Parts Stripped . | . . . . . . . . . . . . . . . . . . . . . . . . . . Power Chain Reactions . | . . . . . . . . . . . . . . . . . . . . . . . . . . Alert | -11 -10 -10 -9 -9 -9 -9 -6 -5 -5 -5 -5 -5 -4 -4 -4 -4 -3 -3 -3 -2 -2 -2 -1 -1 -1 ------- Run | Yrd Mat Min Mat Sto Rec Scr Fac Fac Ext Cet Arc Hub Fac Upp Upp War Pro Res Tes Res Qua Frg Acc Com Ac0 Maximum Alert Level 5 | . . . 1 2 . . 2 2 2 1 1 2 3 . . . . . . . 2 5 5 5 . Low Security (%) 31 | 100 100 100 97 8 100 . 25 . . 7 15 41 1 . . . . 100 100 100 47 8 . . . Level 1 16 | . . . 2 63 . . 30 33 86 92 84 39 53 . . . . . . . 45 2 . . . Level 2 9 | . . . . 27 . . 44 66 13 . . 18 17 . . . . . . . 7 9 . . . Level 3 1 | . . . . . . . . . . . . . 27 . . . . . . . . 3 . . . Level 4 1 | . . . . . . . . . . . . . . . . . . . . . . 6 . . . Level 5 23 | . . . . . . . . . . . . . . . . . . . . . . 69 26 50 . High Security 15 | . . . . . . . . . . . . . . . . . . . . . . . 73 49 . Max Security . | . . . . . . . . . . . . . . . . . . . . . . . . . . Sterilizations 1 | . . . . . . . . . . . . . . . . . . . . . . . 1 . . Peak Influence 12112 | . 175 71 206 513 181 . 579 639 552 338 318 606 772 . . . . 120 117 136 460 5770 11908 12112 . Initial 7620 | . . . . 83 181 . . 244 307 321 85 70 296 . . . . . 24 42 63 168 3461 7620 . Average 2681 | . 76 4 64 315 34 . 328 446 342 258 238 230 459 . . . . 35 48 38 204 2949 8042 10273 . Influence Increases 35235 | . 527 111 931 1040 159 . 1186 1030 1422 335 323 1134 1205 120 50 346 115 334 509 246 1136 6722 8989 5057 2208 Destroy 0b10 Robot/C 19920 | . 280 60 540 500 80 . 700 340 620 160 80 300 580 100 40 260 100 180 280 120 720 4340 6140 3400 . Destroy 0b10 Robot/NC 1825 | . 50 5 80 95 . . 130 95 75 10 30 45 85 . . 5 5 60 35 10 15 425 355 215 . Destroy Leader 3244 | . 58 10 130 186 . . 180 74 86 . . 84 140 20 10 . 10 56 36 32 106 496 964 566 . Allied During Kill 1290 | . . . 26 168 11 . . 33 445 155 110 221 40 . . 81 . . . . . . . . . Successful Hack 371 | . 70 . 33 17 8 . . 12 16 . . 80 7 . . . . 6 46 45 31 . . . . Select Force Hacks 180 | . 30 . 60 30 60 . . . . . . . . . . . . . . . . . . . . Disable Machine 1830 | . 15 . 15 . . . 90 210 60 . 75 135 150 . . . . . 90 . 105 645 45 135 60 Anti-Garrison Action 150 | . . . . . . . . . . . . . . . . . . . . . . 150 . . . Destroy Structure 6020 | . 24 36 2 29 . . 71 236 60 10 28 254 188 . . . . 32 22 39 144 501 1470 726 2148 Partial Spotted 15 | . . . . . . . . . . . . 15 . . . . . . . . . . . . . Lose Combat Pursuer 390 | . . . 45 15 . . 15 30 60 . . . 15 . . . . . . . 15 165 15 15 . Influence Decreases 33217 | . 527 111 733 771 626 . 687 901 1475 696 335 730 1122 582 277 178 283 289 477 211 949 1251 2851 4670 12485 Entered New Map 21398 | . . . . 115 286 . . 255 321 254 129 132 310 256 44 . 168 . 21 35 49 131 2309 4288 12295 Time Decay 8969 | . 527 111 563 556 320 . 497 586 574 262 206 238 612 326 233 108 115 279 436 176 590 770 522 362 . Lost Part 860 | . . . 10 20 . . 190 20 . . . . 30 . . . . 10 20 . 10 350 20 20 160 Lost Ally 840 | . . . 60 80 20 . . 40 280 180 . 60 20 . . 70 . . . . . . . . 30 Purge Threat 1150 | . . . 100 . . . . . 300 . . 300 150 . . . . . . . 300 . . . . Squads Dispatched 196 | . 2 . 3 5 . . 21 6 3 . . 4 6 . . . . 10 2 3 8 10 75 38 . Investigation 24 | . 2 . 3 1 . . 5 1 2 . . . 2 . . . . 4 . 1 . 3 . . . Extermination 28 | . . . . . . . 4 3 . . . 1 4 . . . . . 2 1 7 3 2 1 . Reinforcement 30 | . . . . 3 . . 4 2 1 . . 3 . . . . . 6 . 1 1 3 5 1 . Assault 106 | . . . . 1 . . . . . . . . . . . . . . . . . 1 68 36 . Garrison 8 | . . . . . . . 8 . . . . . . . . . . . . . . . . . . Intercept . | . . . . . . . . . . . . . . . . . . . . . . . . . . Searches Triggered . | . . . . . . . . . . . . . . . . . . . . . . . . . . Construction Impeded 5 | . . . . 1 . . 1 . 1 . . . . . . . . 1 . . . . 1 . . Haulers Reinforced 4 | . . . . . . . . 2 . . . . . . . . . 2 . . . . . . . Active Scanning Responses . | . . . . . . . . . . . . . . . . . . . . . . . . . . Cargo Convoy Interrupts 1 | . . . . . . . 1 . . . . . . . . . . . . . . . . . . Stealth | -11 -10 -10 -9 -9 -9 -9 -6 -5 -5 -5 -5 -5 -4 -4 -4 -4 -3 -3 -3 -2 -2 -2 -1 -1 -1 --------- Run | Yrd Mat Min Mat Sto Rec Scr Fac Fac Ext Cet Arc Hub Fac Upp Upp War Pro Res Tes Res Qua Frg Acc Com Ac0 Distress Signals 63 | . . . 4 3 . . 5 . 3 2 . 1 3 . . . . 7 . . . 18 3 14 . Communications Jammed . | . . . . . . . . . . . . . . . . . . . . . . . . . . Distress Signals . | . . . . . . . . . . . . . . . . . . . . . . . . . . Times Spotted 1224 | . 24 5 29 29 4 2 58 22 30 7 11 22 36 4 1 42 4 14 17 9 40 283 308 174 49 Peak Tracking Total 18 | . 5 3 4 3 2 2 11 3 5 5 2 4 5 2 1 11 4 5 5 6 5 15 10 18 4 Tactical Retreats 22 | . . . 2 1 . . 1 1 2 . . . 1 . . . . . . . 1 11 1 1 . Traps | -11 -10 -10 -9 -9 -9 -9 -6 -5 -5 -5 -5 -5 -4 -4 -4 -4 -3 -3 -3 -2 -2 -2 -1 -1 -1 ------- Run | Yrd Mat Min Mat Sto Rec Scr Fac Fac Ext Cet Arc Hub Fac Upp Upp War Pro Res Tes Res Qua Frg Acc Com Ac0 Traps Triggered 45 | . 3 . 1 . . . 2 . 4 . . 2 . . . . . 1 6 . 2 19 4 1 . Indirectly . | . . . . . . . . . . . . . . . . . . . . . . . . . . Trap Hack Attempts . | . . . . . . . . . . . . . . . . . . . . . . . . . . Triggered . | . . . . . . . . . . . . . . . . . . . . . . . . . . Disarmed . | . . . . . . . . . . . . . . . . . . . . . . . . . . Reprogrammed . | . . . . . . . . . . . . . . . . . . . . . . . . . . Reused . | . . . . . . . . . . . . . . . . . . . . . . . . . . Traps Extracted . | . . . . . . . . . . . . . . . . . . . . . . . . . . Installed . | . . . . . . . . . . . . . . . . . . . . . . . . . . Triggered . | . . . . . . . . . . . . . . . . . . . . . . . . . . Machines | -11 -10 -10 -9 -9 -9 -9 -6 -5 -5 -5 -5 -5 -4 -4 -4 -4 -3 -3 -3 -2 -2 -2 -1 -1 -1 ---------- Run | Yrd Mat Min Mat Sto Rec Scr Fac Fac Ext Cet Arc Hub Fac Upp Upp War Pro Res Tes Res Qua Frg Acc Com Ac0 Machines Disabled 158 | . 1 . 1 . . . 6 14 8 . 5 9 10 . . 1 . . 9 . 7 67 7 9 4 Max in Single Turn 7 | . 1 . 1 . . . 5 7 1 . 1 2 5 . . 1 . . 3 . 1 4 1 2 1 Garrison Access 3 | . . . . . . . . . . . . . . . . . . . . . . 1 2 . . Network Hub 1 | . . . . . . . . . . . . 1 . . . . . . . . . . . . . Energy Cycler 1 | . . . . . . . . . . . . . . . . . . . . . . . 1 . . Machines Repaired . | . . . . . . . . . . . . . . . . . . . . . . . . . . Machines Dismantled 2 | . . . . . . . . . 1 . . . . . . 1 . . . . . . . . . Machines Sabotaged . | . . . . . . . . . . . . . . . . . . . . . . . . . . Overloaded Fab Kills . | . . . . . . . . . . . . . . . . . . . . . . . . . . Hacking | -11 -10 -10 -9 -9 -9 -9 -6 -5 -5 -5 -5 -5 -4 -4 -4 -4 -3 -3 -3 -2 -2 -2 -1 -1 -1 --------- Run | Yrd Mat Min Mat Sto Rec Scr Fac Fac Ext Cet Arc Hub Fac Upp Upp War Pro Res Tes Res Qua Frg Acc Com Ac0 Machines Accessed 99 | . 10 1 11 8 8 4 7 3 13 . . 5 4 1 1 1 . 2 5 3 8 3 1 . . Terminals 65 | . 7 . 8 6 6 . 3 1 12 . . 5 2 . . . . 1 4 1 7 1 1 . . Fabricators 3 | . . . . . . . 1 . . . . . 1 . . . . . . 1 . . . . . Repair Stations 6 | . 1 . 1 1 . . . 1 . . . . . . . . . . 1 . 1 . . . . Recycling Units 16 | . 2 . 2 1 2 . 2 1 1 . . . 1 . . . . 1 . 1 . 2 . . . Scanalyzers . | . . . . . . . . . . . . . . . . . . . . . . . . . . Garrison Access 1 | . . . . . . . 1 . . . . . . . . . . . . . . . . . . Total Hacks 261 | . 38 1 26 17 15 27 12 11 28 . . 14 14 1 1 4 . 8 13 5 20 5 1 . . Successful 153 | . 21 1 15 7 7 27 4 9 11 . . 9 8 1 1 4 . 5 6 4 11 2 . . . Failed 107 | . 16 . 11 10 8 . 8 2 17 . . 5 6 . . . . 3 7 1 9 3 1 . . Catastrophic 17 | . 2 . . . . . 3 . 2 . . 1 3 . . . . . 1 . 3 1 1 . . Database Lockouts 1 | . 1 . . . . . . . . . . . . . . . . . . . . . . . . Manual 123 | . 25 . 18 7 13 . 4 4 12 1 . 6 9 . . . . 7 3 3 7 4 . . . Terminals 176 | . 29 . 22 12 13 . 5 4 26 . . 14 11 . . . . 7 9 3 18 2 1 . . Fabricators 5 | . . . . . . . 2 . . . . . 2 . . . . . . 1 . . . . . Repair Stations 21 | . 4 . 2 3 . . . 6 . . . . . . . . . . 4 . 2 . . . . Recycling Units 23 | . 5 . 2 2 2 . 3 1 2 . . . 1 . . . . 1 . 1 . 3 . . . Scanalyzers . | . . . . . . . . . . . . . . . . . . . . . . . . . . Garrison Access 2 | . . . . . . . 2 . . . . . . . . . . . . . . . . . . Terminal Hacks 85 | . 9 1 5 4 1 27 . 1 9 . . 6 5 1 1 4 . 3 1 1 6 . . . . Record 27 | . . . . . . 27 . . . . . . . . . . . . . . . . . . . Part Schematic 1 | . . . . . . . . 1 . . . . . . . . . . . . . . . . . Robot Analysis 3 | . 2 . 1 . . . . . . . . . . . . . . . . . . . . . . Prototype ID Bank 10 | . 3 . 1 . 1 . . . . . . . . . . 4 . . . . 1 . . . . Open Door 11 | . . 1 . 3 . . . . 5 . . . . 1 1 . . . . . . . . . . Level Access Points 1 | . . . . . . . . . . . . 1 . . . . . . . . . . . . . Branch Access Points 3 | . . . . . . . . . . . . . 1 . . . . 1 . 1 . . . . . Terminal Index 3 | . . . . . . . . . . . . 1 1 . . . . . . . 1 . . . . Recycling Unit Index 1 | . . . . . . . . . . . . . . . . . . 1 . . . . . . . Alert Level 7 | . 1 . 1 . . . . . 1 . . 1 1 . . . . 1 . . 1 . . . . Unreport Threat 8 | . . . 1 . . . . . 2 . . 2 1 . . . . . . . 2 . . . . Locate Traps 2 | . 1 . . . . . . . . . . . . . . . . . 1 . . . . . . Hauler Manifests 2 | . 1 . 1 . . . . . . . . . . . . . . . . . . . . . . Zone Layout 6 | . 1 . . 1 . . . . 1 . . 1 1 . . . . . . . 1 . . . . Fabricator Hacks 4 | . . . . . . . 1 . . . . . 2 . . . . . . 1 . . . . . Network Status 2 | . . . . . . . 1 . . . . . . . . . . . . 1 . . . . . Load Schematic 1 | . . . . . . . . . . . . . 1 . . . . . . . . . . . . Build 1 | . . . . . . . . . . . . . 1 . . . . . . . . . . . . Repair Station Hacks 18 | . 2 . 2 2 . . . 6 . . . . . . . . . . 4 . 2 . . . . Scan Component 9 | . 1 . 1 1 . . . 3 . . . . . . . . . . 2 . 1 . . . . Repair 9 | . 1 . 1 1 . . . 3 . . . . . . . . . . 2 . 1 . . . . Recycling Unit Hacks 1 | . . . . . . . 1 . . . . . . . . . . . . . . . . . . Retrieve Components 1 | . . . . . . . 1 . . . . . . . . . . . . . . . . . . Scanalyzer . | . . . . . . . . . . . . . . . . . . . . . . . . . . Garrison Access Hacks . | . . . . . . . . . . . . . . . . . . . . . . . . . . Unauthorized Hacks 45 | . 10 . 8 1 6 . 2 2 2 . . 3 1 . . . . 2 1 2 3 2 . . . Terminals 30 | . 9 . 6 . 4 . . 1 1 . . 3 . . . . . 1 1 1 3 . . . . Botnet 16 | . 4 . 1 . . . . 1 1 . . 3 . . . . . 1 1 1 3 . . . . Skim 14 | . 5 . 5 . 4 . . . . . . . . . . . . . . . . . . . . Fabricators . | . . . . . . . . . . . . . . . . . . . . . . . . . . Repair Stations . | . . . . . . . . . . . . . . . . . . . . . . . . . . Recycling Units 15 | . 1 . 2 1 2 . 2 1 1 . . . 1 . . . . 1 . 1 . 2 . . . Tunnel 6 | . 1 . 2 1 2 . . . . . . . . . . . . . . . . . . . . Fedlink 8 | . . . . . . . 2 1 . . . . 1 . . . . 1 . 1 . 2 . . . Scrapoids 1 | . . . . . . . . . 1 . . . . . . . . . . . . . . . . Scanalyzers . | . . . . . . . . . . . . . . . . . . . . . . . . . . Garrison Access . | . . . . . . . . . . . . . . . . . . . . . . . . . . Data Cores Recovered 3 | . . . . . . . . . . . . 1 1 . . . . . . . . 1 . . . Used 2 | . . . . . . . . . . . . 1 1 . . . . . . . . . . . . Hacking Detections 67 | . 8 . 8 5 6 . 5 2 10 . . 4 3 . . . . 1 4 1 7 2 1 . . Full Trace Events 6 | . 1 . . . . . 3 . 1 . . . 1 . . . . . . . . . . . . Feedback Events . | . . . . . . . . . . . . . . . . . . . . . . . . . . Feedback Blocked . | . . . . . . . . . . . . . . . . . . . . . . . . . . Robot Schematics Acquired 3 | . . . . . . . . . . . . . . . . . . . . . . 3 . . . Robots Built . | . . . . . . . . . . . . . . . . . . . . . . . . . . Authchips . | . . . . . . . . . . . . . . . . . . . . . . . . . . Time . | . . . . . . . . . . . . . . . . . . . . . . . . . . Total Robot Build Rating . | . . . . . . . . . . . . . . . . . . . . . . . . . . Part Schematics Acquired 15 | . . . . . . . . 1 . . . . . . . . . . 2 . . 12 . . . Parts Built 2 | . . . . . . . . . . . . . 2 . . . . . . . . . . . . Authchips . | . . . . . . . . . . . . . . . . . . . . . . . . . . Time 117 | . . . . . . . . . . . . . 117 . . . . . . . . . . . . Total Part Build Rating 14 | . . . . . . . . . . . . . 14 . . . . . . . . . . . . Parts Repaired 9 | . 1 . 1 1 . . . 3 . . . . . . . . . . 2 . 1 . . . . Time 416 | . 13 . 26 32 . . . 108 . . . . . . . . . . 188 . 49 . . . . Parts Recycled . | . . . . . . . . . . . . . . . . . . . . . . . . . . Recycled Matter . | . . . . . . . . . . . . . . . . . . . . . . . . . . Retrieved Matter . | . . . . . . . . . . . . . . . . . . . . . . . . . . Retrieved Components 6 | . . . . . . . 6 . . . . . . . . . . . . . . . . . . Parts Scanalyzed . | . . . . . . . . . . . . . . . . . . . . . . . . . . Part Schematics Acquired . | . . . . . . . . . . . . . . . . . . . . . . . . . . Parts Damaged . | . . . . . . . . . . . . . . . . . . . . . . . . . . Bothacking | -11 -10 -10 -9 -9 -9 -9 -6 -5 -5 -5 -5 -5 -4 -4 -4 -4 -3 -3 -3 -2 -2 -2 -1 -1 -1 ------------ Run | Yrd Mat Min Mat Sto Rec Scr Fac Fac Ext Cet Arc Hub Fac Upp Upp War Pro Res Tes Res Qua Frg Acc Com Ac0 Used RIF Installer . | . . . . . . . . . . . . . . . . . . . . . . . . . . Robots Hacked . | . . . . . . . . . . . . . . . . . . . . . . . . . . Non-combat . | . . . . . . . . . . . . . . . . . . . . . . . . . . Combat . | . . . . . . . . . . . . . . . . . . . . . . . . . . Robot Hacks Applied . | . . . . . . . . . . . . . . . . . . . . . . . . . . Relay Couplers Released 11 | . . . . . . . 4 . . . . . . . . . . . . . . 3 4 . . Machine Destruction 7 | . . . . . . . . . . . . . . . . . . . . . . 3 4 . . Programmers 4 | . . . . . . . 4 . . . . . . . . . . . . . . . . . . Fabnet Peak Effective % . | . . . . . . . . . . . . . . . . . . . . . . . . . . Robots Rewired 15 | . . . . . . . . . 10 . . . . . . 5 . . . . . . . . . Allies Hacked . | . . . . . . . . . . . . . . . . . . . . . . . . . . Hacks Repelled . | . . . . . . . . . . . . . . . . . . . . . . . . . . Allies | -11 -10 -10 -9 -9 -9 -9 -6 -5 -5 -5 -5 -5 -4 -4 -4 -4 -3 -3 -3 -2 -2 -2 -1 -1 -1 -------- Run | Yrd Mat Min Mat Sto Rec Scr Fac Fac Ext Cet Arc Hub Fac Upp Upp War Pro Res Tes Res Qua Frg Acc Com Ac0 Total Allies 51 | . . 3 . 10 . . . 5 23 5 . . . . . 5 . . . . . . . . . Largest Group 13 | . . 3 3 10 5 1 . 5 12 13 5 5 1 . . 5 . . . . . . . . . Highest-Rated Group 845 | . . 40 40 88 40 7 . 238 527 845 480 480 96 . . 287 . . . . . . . . . Highest-Rated Ally 159 | . . 16 16 16 8 7 . 50 159 159 96 96 96 . . 68 . . . . . . . . . Total Orders 17 | . . . . . . . . . . 7 . . . . . 2 . . . . . . . . 8 STAY 4 | . . . . . . . . . . 4 . . . . . . . . . . . . . . . ROAM 1 | . . . . . . . . . . . . . . . . 1 . . . . . . . . . FOLLOW 4 | . . . . . . . . . . 3 . . . . . . . . . . . . . . 1 AID 1 | . . . . . . . . . . . . . . . . 1 . . . . . . . . . EXPLORE 7 | . . . . . . . . . . . . . . . . . . . . . . . . . 7 Ally Attacks 533 | . . . 21 73 22 7 . 35 181 58 23 63 7 . . 43 . . . . . . . . . Total Damage 12957 | . . . 217 558 205 63 . 623 3675 1616 991 2192 156 . . 2661 . . . . . . . . . Kills 82 | . . . 4 11 5 2 . 2 22 8 3 14 3 . . 8 . . . . . . . . . Allies Corrupted 1 | . . . . . . . . . . . . . 1 . . . . . . . . . . . . Allies Melted 3 | . . . . . . 2 . . . . . 1 . . . . . . . . . . . . . Intel | -11 -10 -10 -9 -9 -9 -9 -6 -5 -5 -5 -5 -5 -4 -4 -4 -4 -3 -3 -3 -2 -2 -2 -1 -1 -1 ------- Run | Yrd Mat Min Mat Sto Rec Scr Fac Fac Ext Cet Arc Hub Fac Upp Upp War Pro Res Tes Res Qua Frg Acc Com Ac0 Active Infowar (turns) 18171 | . . . . . . . 1472 165 835 . . . 1480 657 505 1797 598 734 1327 481 1880 3135 2899 206 . Sensors 12068 | . . . . . . . . 165 835 . . . 1473 657 505 1797 598 734 1327 481 1880 1616 . . . Terrain 242 | . . . . . . . . . . . . . 242 . . . . . . . . . . . . Seismic 1472 | . . . . . . . 1472 . . . . . . . . . . . . . . . . . . Cloaking 4624 | . . . . . . . . . . . . . . . . . . . . . . 1519 2899 206 . Robot Analysis Total 3 | . 2 . 1 . . . . . . . . . . . . . . . . . . . . . . Derelict Logs Recovered 4 | . . 1 . . . . . . . . . . . 3 . . . . . . . . . . . Drone Launches 6 | . . . . . . . . . . . . . . . . . . . . . . . . . 6 Drone Recoveries 3 | . . . . . . . . . . . . . . . . . . . . . . . . . 3 Exploration | -11 -10 -10 -9 -9 -9 -9 -6 -5 -5 -5 -5 -5 -4 -4 -4 -4 -3 -3 -3 -2 -2 -2 -1 -1 -1 ------------- Run | Yrd Mat Min Mat Sto Rec Scr Fac Fac Ext Cet Arc Hub Fac Upp Upp War Pro Res Tes Res Qua Frg Acc Com Ac0 Turns Passed 50649 | 68 2025 1738 2677 1626 1625 2514 2121 1824 1754 579 426 517 2012 735 505 1837 613 860 1557 522 2284 8098 5511 5878 743 Spaces Moved 19141 | 48 670 516 712 407 491 1012 928 712 860 191 91 253 786 453 334 1075 421 410 682 295 1107 3278 1774 1306 329 Core 27 | 17 . . . . . . . . . . . . . . . . . . . . . . . . 10 Treads 7835 | 31 670 516 712 407 491 490 . . . 5 38 17 3 5 . 2 . . . . . 1049 1774 1306 319 Legs . | . . . . . . . . . . . . . . . . . . . . . . . . . . Wheels 11279 | . . . . . . 522 928 712 860 186 53 236 783 448 334 1073 421 410 682 295 1107 2229 . . . Hover . | . . . . . . . . . . . . . . . . . . . . . . . . . . Flight . | . . . . . . . . . . . . . . . . . . . . . . . . . . Fastest Speed 50 | 50 160 320 160 320 320 145 145 160 130 130 130 130 140 140 140 120 140 150 140 150 150 130 160 160 50 Average Speed 179 | 124 261 320 319 320 320 239 146 160 147 132 175 137 140 141 140 138 140 150 149 150 159 156 160 160 156 Slowest Speed 480 | 160 480 320 320 320 320 320 160 160 160 240 240 240 240 240 140 240 140 150 150 160 160 320 160 160 160 Overloaded Moves . | . . . . . . . . . . . . . . . . . . . . . . . . . . Propulsion Burnouts . | . . . . . . . . . . . . . . . . . . . . . . . . . . Robots Hopped . | . . . . . . . . . . . . . . . . . . . . . . . . . . Potential Cave-ins 26 | . . . . . . . . . . . . . . . . . . 2 4 . . 17 . 3 . Cave-ins Triggered . | . . . . . . . . . . . . . . . . . . . . . . . . . . Teleports 2 | . . . . . . . . . . . . . . . . . . . . . . . . 1 1 Exploration Rate (%) 56 | 4 97 99 65 72 96 80 30 12 85 56 81 35 25 62 51 81 65 15 65 9 92 65 43 42 31 Regions Visited 25 Branch Regions 17 Pre-discovered Areas 12 | . 2 . 3 1 2 3 1 . . . . . . . . . . . . . . . . . . Known Exits Taken 20 | . 1 1 1 1 1 . . 1 1 1 1 1 1 1 1 1 1 1 1 1 1 1 . . . Unknown Exits Taken 5 | 1 . . . . . 1 1 . . . . . . . . . . . . . . . 1 1 . Scrap Searched 9 | . . 1 . . . 3 . . . . . . . . 3 . 2 . . . . . . . . Spaces Dug 138 | . . . . 19 . . 11 7 . . . 8 8 21 . 1 . 11 8 2 11 10 2 3 16 Terrain Destroyed 3336 | . 19 62 . 28 . . 75 120 16 5 19 216 122 42 16 4 17 29 28 19 74 422 682 639 682 Melee 8 | . . . . . . . 5 3 . . . . . . . . . . . . . . . . . Projectile 2674 | . . . . . . . 6 10 14 5 19 46 93 42 16 4 17 29 28 17 68 361 597 621 681 AOE 563 | . 19 62 . 28 . . 64 107 . . . 170 29 . . . . . . . . 56 28 . . Terrain Rammed . | . . . . . . . . . . . . . . . . . . . . . . . . . . Walls Destroyed . | . . . . . . . . . . . . . . . . . . . . . . . . . . Machines Disabled . | . . . . . . . . . . . . . . . . . . . . . . . . . . Actions | -11 -10 -10 -9 -9 -9 -9 -6 -5 -5 -5 -5 -5 -4 -4 -4 -4 -3 -3 -3 -2 -2 -2 -1 -1 -1 --------- Run | Yrd Mat Min Mat Sto Rec Scr Fac Fac Ext Cet Arc Hub Fac Upp Upp War Pro Res Tes Res Qua Frg Acc Com Ac0 Total 33943 | 54 832 595 962 588 527 1107 1401 1186 1222 485 313 346 1496 518 361 1387 434 600 1149 346 1502 5871 4750 5312 599 Wait 10893 | . 60 43 100 68 28 65 249 312 132 248 197 62 555 47 17 185 5 132 374 24 277 1559 2474 3645 35 Move 19116 | 47 669 515 711 406 490 1011 928 711 859 190 90 252 785 452 333 1074 420 409 681 294 1106 3277 1773 1305 328 Hop . | . . . . . . . . . . . . . . . . . . . . . . . . . . Pick Up 328 | 1 27 8 36 8 . 7 20 21 13 7 . . 14 1 1 7 1 6 6 4 4 97 12 11 16 Fast Attach 155 | 6 3 . 2 4 . 4 3 8 7 9 4 . 6 . 2 16 . 1 12 . 5 53 . 8 2 Attach 121 | . . . 3 2 . . 22 11 . . . . 6 . . 1 . 4 1 3 1 46 3 3 15 Detach 8 | . . . . . . . 1 2 . . . . . . . . . . . . . 5 . . . Swap 381 | . 8 6 12 12 . 4 31 11 9 1 1 . 42 4 . 12 3 15 22 9 38 81 31 14 15 Drop 325 | . 6 10 22 16 . 14 7 15 22 16 3 . 16 1 3 25 . 3 14 1 7 87 8 17 12 Fire 2298 | . 52 12 69 69 4 2 126 92 44 14 17 29 72 13 5 11 5 30 38 11 64 594 444 305 176 Melee 8 | . . . . . . . 5 3 . . . . . . . . . . . . . . . . . Ram . | . . . . . . . . . . . . . . . . . . . . . . . . . . Kick . | . . . . . . . . . . . . . . . . . . . . . . . . . . Crush 34 | . 7 1 7 3 5 . 1 . . . 1 3 . . . . . . 1 . . 2 2 1 . Escape Stasis 120 | . . . . . . . 8 . 36 . . . . . . . . . . . . 70 3 3 . Rewire 140 | . . . . . . . . . 92 . . . . . . 48 . . . . . . . . . Trap . | . . . . . . . . . . . . . . . . . . . . . . . . . . Miscellaneous 16 | . . . . . . . . . 8 . . . . . . 8 . . . . . . . . . Route ------- -11/Scrapyard -10/Materials (discovered 6 exits: *Mat x3 / *Min x2 / *Sub) -10/Mines (discovered 4 exits: *Mat x2 / [*Exi] / *Sub) -9/Materials (discovered 5 exits: *Mat x2 / *Min / *Sto x2) -9/Storage (discovered 2 exits: Mat / *Rec) -9/Recycling (discovered 2 exits: [*Fac] / *Scr) -9/Scraptown (discovered 2 exits: *Fac x2) -6/Factory -5/Factory -5/Extension (discovered 2 exits: *Fac / *Cet) -5/Cetus (discovered 2 exits: *Fac / *Arc) -5/Archives (discovered 3 exits: *Fac / *Hub x2) -5/Hub_04(d) (discovered 4 exits: *Fac x4) -4/Factory (discovered 2 exits: *Upp x2) -4/Upper Caves -4/Upper Caves -4/Warlord -3/Proximity Caves -3/Research (discovered 3 exits: Arm / *Tes x2) -3/Testing -2/Research (discovered 3 exits: *Acc / *Qua x2) -2/Quarantine (discovered 3 exits: *Acc / [*Sec] / *Frg) -2/Protoforge -1/Access -1/Command (discovered 3 exits: [*Sur x2] / [*Ac0]) -1/Access_0 Near Former Tau Ceti IV History --------- Turn | Location | Event 3 | -11/Scrapyard | Discovered new exit (range 15) 69 | -11/Scrapyard | Entered Materials 308 | -10/Materials | Build established: Mutant 353 | -10/Materials | Discovered new exit (range 3) 394 | -10/Materials | Central database locked down 447 | -10/Materials | Discovered new exit (range 8) 543 | -10/Materials | Discovered new exit (range 4) 760 | -10/Materials | Discovered new exit (range 15) 992 | -10/Materials | Learned Storage trap positions 1064 | -10/Materials | Identified exit to Subcaves 1064 | -10/Materials | Identified exit to Materials 1203 | -10/Materials | Repaired Lgt. Treads 1230 | -10/Materials | Loaded intel: 14 trap records 1267 | -10/Materials | Learned Storage interactive machine intel 1312 | -10/Materials | Identified exit to Mines 1366 | -10/Materials | Learned 4 Recycling zone layouts 1428 | -10/Materials | Learned location of Mines (-9) 2094 | -10/Materials | Entered Mines 2095 | -10/Mines | Assembled infested the area 2291 | -10/Mines | Discovered exit to Subcaves (range 13) 2496 | -10/Mines | A weapon hastily lodged in a ceiling crevice suddenly fell to the ground 2580 | -10/Mines | Joined a pair of Derelicts in attacking an 0b10 outpost 2873 | -10/Mines | Assisted by bots powering up and referring to "LRC-V3" 2913 | -10/Mines | Learned 4 Materials zone layouts 2926 | -10/Mines | Discovered exit to Materials (range 8) 2936 | -10/Mines | Found the Drone Emporium 3143 | -10/Mines | Discovered exit to Materials (range 7) 3301 | -10/Mines | Received a Rocket Launcher from a helpful Derelict 3387 | -10/Mines | Deemed a non-threat by the Exiles lab entrance 3387 | -10/Mines | Discovered new exit (range 5) 3832 | -10/Mines | Entered Materials 3832 | -9/Materials | Accompanied by 3 allies 3832 | -9/Materials | Evolved 2 slots: Utility x1, Weapon x1 3833 | -9/Materials | Identified exit to Mines 3834 | -9/Materials | Identified exit to Storage 3834 | -9/Materials | Identified exit to Materials 4127 | -9/Materials | Build established: Scavenger-Tank 4189 | -9/Materials | Repaired Huge Storage Unit 5843 | -9/Materials | Discovered exit to Materials (range 10) 6130 | -9/Materials | Learned Storage trap positions 6184 | -9/Materials | Learned location of 1 exit from Storage 6197 | -9/Materials | Learned Storage security intel 6202 | -9/Materials | Loaded intel: 2 repair station locations 6213 | -9/Materials | Learned Storage garrison access intel 6509 | -9/Materials | Entered Storage 6511 | -9/Storage | Identified exit to Recycling 6512 | -9/Storage | Loaded intel: 23 trap records 6514 | -9/Storage | Loaded intel: 16 interactive machine locations 6792 | -9/Storage | Repaired Hvy. Assault Rifle 6934 | -9/Storage | Assisted by bots powering up and referring to "LRC-V3" 7232 | -9/Storage | Build established: Commander-Tank 8109 | -9/Storage | First assault squad dispatched 8114 | -9/Storage | Used back door to open Recycling access 8135 | -9/Storage | Entered Recycling 8135 | -9/Recycling | Accompanied by 5 allies 8136 | -9/Recycling | Identified exit to Scraptown 8904 | -9/Recycling | Lost 3 allies 9150 | -9/Recycling | Build established: Tank 9322 | -9/Recycling | Discovered new exit (range 15) 9678 | -9/Recycling | Scanned before Scraplab entrance 9726 | -9/Recycling | Entered Scraplab 9760 | -9/Recycling | Entered Scraptown 9760 | -9/Scraptown | Accompanied by 1 ally 10584 | -9/Scraptown | Discovered new exit (range 13) 10786 | -9/Scraptown | Visited Spacefarers 10837 | -9/Scraptown | Visited Red Mages 10904 | -9/Scraptown | Visited Cyclists 11019 | -9/Scraptown | Visited Awakened 11131 | -9/Scraptown | Visited Junk Repository 11247 | -9/Scraptown | Visited Fellowship of the Rings 11380 | -9/Scraptown | Visited UFD Registry 11380 | -9/Scraptown | Registered with UFD as "Wavehead" 11433 | -9/Scraptown | Entered Cyclist Reading Room 11439 | -9/Scraptown | Learned location of Zion (-7) 11532 | -9/Scraptown | Visited Abandonware Association 11553 | -9/Scraptown | Learned abandonware demo "REBOOT5.EXE" 11600 | -9/Scraptown | Visited Scrapoid Pod Storage 11769 | -9/Scraptown | Visited A0-MCA Data Center 11790 | -9/Scraptown | Visited Analyses Database 11809 | -9/Scraptown | Visited Scrap Suit Storage 11823 | -9/Scraptown | Visited Curators Association 11884 | -9/Scraptown | Visited Junk Repository 11944 | -9/Scraptown | Visited Chapter 10 11967 | -9/Scraptown | Visited LU-1G1's Boring Crew 12032 | -9/Scraptown | Found Scrapoid Pod 12183 | -9/Scraptown | Met Optimus 12183 | -9/Scraptown | Accepted into 0bPrime 12245 | -9/Scraptown | Civil war broke out across Scraptown 12268 | -9/Scraptown | Discovered new exit (range 3) 12274 | -9/Scraptown | Entered Factory 12274 | -6/Factory | Evolved 6 slots: Propulsion x2, Utility x3, Weapon x1 12288 | -6/Factory | Lost 3 allies 12401 | -6/Factory | Loaded intel: 8 recycling unit locations 12859 | -6/Factory | Spotted B-75 Beast 12999 | -6/Factory | Garrison activated, responded to threat 13041 | -6/Factory | Destroyed 7 combat bots 13307 | -6/Factory | Learned location of Protoforge (-2) 13557 | -6/Factory | Lost 3 parts (1u2w) 13640 | -6/Factory | Build established: Gunner 13723 | -6/Factory | Garrison activated, responded to threat 13733 | -6/Factory | Discovered new exit (range 7) 13826 | -6/Factory | Garrison activated, responded to threat 13864 | -6/Factory | Lost 3 parts (2n1u) 14071 | -6/Factory | Cargo convoy interrupted 14382 | -6/Factory | Garrison activated, responded to threat 14395 | -6/Factory | Entered another Factory area 14395 | -5/Factory | Evolved 2 slots: Utility x2 14418 | -5/Factory | Lost 5 parts (1n1u3w) 14650 | -5/Factory | Repaired Lyr. Light Armor Plating 14673 | -5/Factory | Build established: Scavenger-Gunner 14685 | -5/Factory | Repaired Imp. Treads 14719 | -5/Factory | Repaired Imp. Treads 15037 | -5/Factory | Loaded intel: 8 recycling unit locations 15095 | -5/Factory | Build established: Scavenger-Tank 15560 | -5/Factory | Discovered new exit (range 14) 16018 | -5/Factory | Scrapoid Pod released 05F05-D (x5) 16059 | -5/Factory | Found Scrap Suit 16215 | -5/Factory | Identified exit to Extension 16219 | -5/Factory | Entered Extension 16219 | -5/Extension | Accompanied by 3 allies 16264 | -5/Extension | Rescued a captive Derelict 16318 | -5/Extension | Build established: Scavenger-Skirmisher 16632 | -5/Extension | Rescued a captive Derelict 16633 | -5/Extension | Rescued a captive Derelict 17056 | -5/Extension | Spotted B-75 Beast 17068 | -5/Extension | Allies destroyed B-75 Beast 17071 | -5/Extension | Found Corrupted Scrap Suit 17076 | -5/Extension | Spotted B-75 Beast 17101 | -5/Extension | Destroyed B-75 Beast 17122 | -5/Extension | Lost 4 allies 17347 | -5/Extension | Build established: Scavenger-Tank 17444 | -5/Extension | Disrupted transfer network 17483 | -5/Extension | Lost 7 allies 17614 | -5/Extension | Scrapoid reinforcements arrived 17704 | -5/Extension | Rescued A7 17801 | -5/Extension | Rescued a captive Derelict 17802 | -5/Extension | Rescued a captive Derelict 17849 | -5/Extension | Rescued a captive Derelict 17850 | -5/Extension | Rescued a captive Derelict 17855 | -5/Extension | Rescued a captive Derelict 17930 | -5/Extension | Discovered new exit (range 10) 17931 | -5/Extension | Discovered new exit (range 6) 17951 | -5/Extension | Identified exit to Cetus 17973 | -5/Extension | Entered Cetus 17973 | -5/Cetus | Accompanied by 12 allies (A7) 17978 | -5/Cetus | Acquired a Cetus Manufacturing Module code from A7 18083 | -5/Cetus | Spotted Cetus Guard 18088 | -5/Cetus | Spotted Cetus Guard 18088 | -5/Cetus | Spotted Cetus Guard 18089 | -5/Cetus | Allies destroyed Cetus Guard 18099 | -5/Cetus | Allies destroyed Cetus Guard 18100 | -5/Cetus | Found Scrap Suit 18103 | -5/Cetus | Allies destroyed Cetus Guard 18115 | -5/Cetus | System corruption reached 10% 18128 | -5/Cetus | Lost 4 allies 18191 | -5/Cetus | Started Cetus Manufacturing Module 18208 | -5/Cetus | Discovered new exit (range 15) 18216 | -5/Cetus | Manufactured an Enhanced Grunt 18241 | -5/Cetus | Manufactured an Enhanced Grunt 18266 | -5/Cetus | Manufactured an Enhanced Grunt 18291 | -5/Cetus | Manufactured an Enhanced Grunt 18316 | -5/Cetus | Manufactured an Enhanced Grunt 18420 | -5/Cetus | Spotted Cetus Guard 18421 | -5/Cetus | Spotted Cetus Guard 18425 | -5/Cetus | Allies destroyed Cetus Guard 18427 | -5/Cetus | Destroyed Cetus Guard 18455 | -5/Cetus | Murdered A7 18456 | -5/Cetus | Extracted ID and sensor layout for unrecognized location from A7's data core 18469 | -5/Cetus | Lost 5 allies 18470 | -5/Cetus | Found Prototype Protection 18470 | -5/Cetus | Identified Med. Regenerative Plating 18489 | -5/Cetus | Discovered new exit (range 15) 18497 | -5/Cetus | Met Revision 17 18551 | -5/Cetus | Identified exit to Archives 18552 | -5/Cetus | Entered Archives 18552 | -5/Archives | Accompanied by 5 allies 18645 | -5/Archives | Discovered new exit (range 14) 18674 | -5/Archives | Discovered new exit (range 15) 18933 | -5/Archives | Discovered new exit (range 13) 18962 | -5/Archives | Identified exit to Hub_04(d) 18978 | -5/Archives | Entered Hub_04(d) 18978 | -5/Hub_04(d) | Accompanied by 5 allies 19164 | -5/Hub_04(d) | Identified exit to Factory 19491 | -5/Hub_04(d) | Network Hub disabled 19495 | -5/Hub_04(d) | Entered Factory 19495 | -4/Factory | Accompanied by 1 ally 19495 | -4/Factory | Evolved 2 slots: Utility x1, Weapon x1 19546 | -4/Factory | Identified exit to Upper Caves 20232 | -4/Factory | Fabricated Adv. Coolant Injector (x2) 20368 | -4/Factory | Spotted B-86 Titan 20419 | -4/Factory | Destroyed B-86 Titan 20488 | -4/Factory | Loaded intel: 8 recycling unit locations 20686 | -4/Factory | Spotted B-86 Titan 20736 | -4/Factory | Destroyed B-86 Titan 21507 | -4/Factory | Entered Upper Caves 21660 | -4/Upper Caves | Learned Research terminal intel 21798 | -4/Upper Caves | Encountered a Warlord checkpoint 21820 | -4/Upper Caves | Learned Research emergency access door positions 21827 | -4/Upper Caves | Learned location of 1 exit from Research 21883 | -4/Upper Caves | Attracted the attention of an 0b10 checkpoint 22227 | -4/Upper Caves | Discovered new exit (range 7) 22239 | -4/Upper Caves | Identified exit to Upper Caves 22242 | -4/Upper Caves | Entered another Upper Caves area 22482 | -4/Upper Caves | Encountered a Warlord checkpoint 22722 | -4/Upper Caves | Discovered new exit (range 14) 22739 | -4/Upper Caves | Identified exit to Warlord 22747 | -4/Upper Caves | Entered Warlord 22790 | -4/Warlord | System corruption cleaned by Quarantine Array 23026 | -4/Warlord | Found Prototype Energy Gun 23026 | -4/Warlord | Identified Plasma Storm 23589 | -4/Warlord | Warlord's base attacked by MAIN.C 23810 | -4/Warlord | Found Prototype Device 23810 | -4/Warlord | Identified Thermal Barrier 23832 | -4/Warlord | Found Prototype Reactor 23875 | -4/Warlord | Rebuked by Warlord 23939 | -4/Warlord | Warlord forces counterattacked 24026 | -4/Warlord | Spotted Executioner 24032 | -4/Warlord | Spotted B-90 Cyclops 24043 | -4/Warlord | Spotted B-86 Titan 24047 | -4/Warlord | Allies destroyed B-86 Titan 24066 | -4/Warlord | Found Prototype Processor 24070 | -4/Warlord | Identified Exp. Core Analyzer 24076 | -4/Warlord | Lost 14 allies 24173 | -4/Warlord | Spotted Executioner 24177 | -4/Warlord | Destroyed Executioner 24210 | -4/Warlord | Lost 12 allies 24264 | -4/Warlord | Warlord base infiltrated, sounded retreat 24349 | -4/Warlord | Build established: Scavenger-Gunner 24503 | -4/Warlord | Spotted Executioner 24510 | -4/Warlord | Discovered new exit (range 13) 24522 | -4/Warlord | Spotted Striker 24534 | -4/Warlord | Spotted Striker 24560 | -4/Warlord | Identified exit to Proximity Caves 24584 | -4/Warlord | Entered Proximity Caves 24585 | -3/Proximity Caves | Lost 6 allies 24911 | -3/Proximity Caves | Discovered new exit (range 5) 24915 | -3/Proximity Caves | Identified exit to Research 24926 | -3/Proximity Caves | Found DCF Scrap (14 items) 25197 | -3/Proximity Caves | Entered Research 25197 | -3/Research | Evolved 2 slots: Power x1, Weapon x1 25198 | -3/Research | Identified exit to Armory 25200 | -3/Research | Loaded intel: 23 terminal locations 25258 | -3/Research | Spotted B-86 Titan 25281 | -3/Research | Destroyed B-86 Titan 25339 | -3/Research | Identified exit to Testing 25397 | -3/Research | Revision forces began assault on 0b10 25440 | -3/Research | Met up with Revision 17++ 25504 | -3/Research | Build established: Scavenger-Executioner 25878 | -3/Research | Loaded intel: 5 recycling unit locations 25897 | -3/Research | Research terminal network offline 26053 | -3/Research | Spotted B-86 Titan 26057 | -3/Research | Entered Testing 26260 | -3/Testing | Repaired Enh. Coil Gun 26360 | -3/Testing | Repaired Adv. KE Penetrator 26515 | -3/Testing | Discovered new exit (range 15) 27090 | -3/Testing | Found Prototype Ballistic Gun 27091 | -3/Testing | Identified Hyp. Multirail 27397 | -3/Testing | Identified Vortex Chain Reactor 27398 | -3/Testing | System corruption reached 10% 27613 | -3/Testing | Identified exit to Research 27614 | -3/Testing | Entered Research 27614 | -2/Research | Evolved 2 slots: Weapon x2 27634 | -2/Research | Identified exit to Quarantine 27871 | -2/Research | Discovered new exit (range 5) 27876 | -2/Research | Identified exit to Access 28008 | -2/Research | Loaded intel: 5 recycling unit locations 28136 | -2/Research | Entered Quarantine 28206 | -2/Quarantine | Repaired Adv. KE Penetrator 28308 | -2/Quarantine | Found Alien Artifact 28377 | -2/Quarantine | Found Alien Artifact 28526 | -2/Quarantine | Cryocooling Duct disabled 28541 | -2/Quarantine | Ambient heat levels rising (+20) 28541 | -2/Quarantine | Non-combat units ordered to evacuate 29991 | -2/Quarantine | Discovered exit to Access (range 8) 30298 | -2/Quarantine | Spotted Fortress 30405 | -2/Quarantine | Discovered new exit (range 6) 30405 | -2/Quarantine | Discovered new exit (range 7) 30411 | -2/Quarantine | Identified exit to Protoforge 30420 | -2/Quarantine | Entered Protoforge 30558 | -2/Protoforge | Spotted Hotshot 30567 | -2/Protoforge | Superfortress began startup sequence 30574 | -2/Protoforge | Spotted Hotshot 30578 | -2/Protoforge | Destroyed Hotshot 30581 | -2/Protoforge | Destroyed Hotshot 31145 | -2/Protoforge | Spotted AP7-3 31146 | -2/Protoforge | Spotted AP7-3 31159 | -2/Protoforge | Destroyed AP7-3 31175 | -2/Protoforge | Destroyed AP7-3 31219 | -2/Protoforge | Destroyed 8 combat bots 31230 | -2/Protoforge | Spotted Overlord 31261 | -2/Protoforge | Destroyed Overlord 31285 | -2/Protoforge | Lost 12 parts (1p5u6w) 31300 | -2/Protoforge | Found Prototype Ballistic Gun 31300 | -2/Protoforge | Identified Cep. XC Strikerail 31306 | -2/Protoforge | Found Cep. XC Strikerail 31330 | -2/Protoforge | System corruption reached 10% 31334 | -2/Protoforge | Found Prototype Device 31426 | -2/Protoforge | Spotted EXE-6 31427 | -2/Protoforge | Spotted EXE-6 31436 | -2/Protoforge | Destroyed EXE-6 31436 | -2/Protoforge | Destroyed EXE-6 31496 | -2/Protoforge | Spotted SKR-2 31513 | -2/Protoforge | Spotted SKR-2 31513 | -2/Protoforge | Destroyed SKR-2 31513 | -2/Protoforge | Destroyed SKR-2 31515 | -2/Protoforge | Spotted SKR-2 31526 | -2/Protoforge | Destroyed SKR-2 31547 | -2/Protoforge | Destroyed 9 combat bots 31548 | -2/Protoforge | Found Cep. XC Strikerail 31555 | -2/Protoforge | Found Exp. Core Analyzer 31559 | -2/Protoforge | Found Prototype Device 31560 | -2/Protoforge | Identified Exp. Kinecellerator 31670 | -2/Protoforge | First assault squad dispatched 31684 | -2/Protoforge | UFD initiated attack on Protoforge 31684 | -2/Protoforge | Loaded intel: 3 recycling unit locations 31724 | -2/Protoforge | Optimus greeted in Protoforge 31828 | -2/Protoforge | Found Unknown Device 31828 | -2/Protoforge | Identified 0bPrime Scrap Suit 31839 | -2/Protoforge | Forge Plexus network access discovered 31853 | -2/Protoforge | Lost 8 allies 31864 | -2/Protoforge | Found 0bPrime Scrap Suit 31917 | -2/Protoforge | Destroyed Striker 31925 | -2/Protoforge | Spotted Striker 32027 | -2/Protoforge | P-80 Master assimilated allied V2-RKA(j) 32053 | -2/Protoforge | Destroyed Executioner 32057 | -2/Protoforge | Destroyed Executioner 32059 | -2/Protoforge | Spotted Striker 32061 | -2/Protoforge | Destroyed Striker 32063 | -2/Protoforge | P-80 Master assimilated allied Lugger 348 32097 | -2/Protoforge | Lost 10 allies 32098 | -2/Protoforge | Destroyed 14 combat bots 32142 | -2/Protoforge | Spotted Striker 32217 | -2/Protoforge | Lost 10 allies 32355 | -2/Protoforge | Destroyed Executioner 32405 | -2/Protoforge | Destroyed 8 combat bots 32423 | -2/Protoforge | Found Exp. Core Analyzer 32429 | -2/Protoforge | Found 0bPrime Scrap Suit 32507 | -2/Protoforge | Spotted Striker 32513 | -2/Protoforge | Destroyed Striker 32518 | -2/Protoforge | Destroyed Striker 32618 | -2/Protoforge | Destroyed 9 combat bots 32639 | -2/Protoforge | Spotted Striker 32654 | -2/Protoforge | Spotted Executioner 32655 | -2/Protoforge | Spotted Executioner 32657 | -2/Protoforge | Destroyed Executioner 32658 | -2/Protoforge | Destroyed Executioner 32687 | -2/Protoforge | Lost 12 allies 32727 | -2/Protoforge | Build established: Scavenger-Scrapper 32758 | -2/Protoforge | UFD reported confirmed Drillbomb installation 32784 | -2/Protoforge | Spotted Striker 32785 | -2/Protoforge | Spotted Striker 32788 | -2/Protoforge | Spotted Striker 32788 | -2/Protoforge | Spotted Striker 32800 | -2/Protoforge | Spotted Striker 32805 | -2/Protoforge | Spotted Executioner 32826 | -2/Protoforge | Spotted Striker 32828 | -2/Protoforge | Spotted Striker 32839 | -2/Protoforge | Destroyed Striker 32842 | -2/Protoforge | Destroyed Striker 32851 | -2/Protoforge | Destroyed Executioner 32865 | -2/Protoforge | Lost 14 allies 32951 | -2/Protoforge | Destroyed 14 combat bots 32971 | -2/Protoforge | Spotted Striker 32974 | -2/Protoforge | Spotted Striker 33013 | -2/Protoforge | Spotted Executioner 33016 | -2/Protoforge | Spotted Executioner 33066 | -2/Protoforge | Spotted Striker 33070 | -2/Protoforge | Destroyed 7 combat bots 33070 | -2/Protoforge | Lost 17 allies 33073 | -2/Protoforge | Spotted Striker 33074 | -2/Protoforge | Destroyed Striker 33098 | -2/Protoforge | Spotted Striker 33103 | -2/Protoforge | Spotted Striker 33106 | -2/Protoforge | Destroyed Striker 33111 | -2/Protoforge | Spotted Executioner 33113 | -2/Protoforge | Spotted Executioner 33118 | -2/Protoforge | Destroyed Executioner 33121 | -2/Protoforge | Spotted Executioner 33127 | -2/Protoforge | Destroyed Executioner 33130 | -2/Protoforge | Destroyed Executioner 33161 | -2/Protoforge | Destroyed 20 combat bots 33172 | -2/Protoforge | Spotted Striker 33178 | -2/Protoforge | Spotted Striker 33187 | -2/Protoforge | Destroyed Striker 33202 | -2/Protoforge | Lost 5 parts (2p3w) 33216 | -2/Protoforge | Lost 18 allies 33255 | -2/Protoforge | Spotted Striker 33291 | -2/Protoforge | Spotted Striker 33300 | -2/Protoforge | Destroyed 7 combat bots 33312 | -2/Protoforge | Destroyed Striker 33340 | -2/Protoforge | Lost 10 allies 33360 | -2/Protoforge | Spotted Decapitator 33363 | -2/Protoforge | Destroyed Decapitator 33370 | -2/Protoforge | Spotted Decapitator 33385 | -2/Protoforge | Spotted Decapitator 33389 | -2/Protoforge | Spotted Striker 33391 | -2/Protoforge | Destroyed Decapitator 33395 | -2/Protoforge | Spotted Striker 33443 | -2/Protoforge | Lost 9 allies 33583 | -2/Protoforge | Spotted Striker 33584 | -2/Protoforge | Spotted Striker 33649 | -2/Protoforge | Lost 8 allies 33650 | -2/Protoforge | Spotted Striker 33653 | -2/Protoforge | Spotted Striker 33656 | -2/Protoforge | Destroyed Striker 33663 | -2/Protoforge | Destroyed Striker 33690 | -2/Protoforge | Destroyed 8 combat bots 33731 | -2/Protoforge | Destroyed 11 combat bots 33766 | -2/Protoforge | Spotted SKR-2 33769 | -2/Protoforge | Spotted Hotshot 33770 | -2/Protoforge | Destroyed SKR-2 33771 | -2/Protoforge | Destroyed Hotshot 33771 | -2/Protoforge | Destroyed Hotshot 33772 | -2/Protoforge | Spotted Hotshot 33776 | -2/Protoforge | Destroyed Hotshot 33801 | -2/Protoforge | Spotted Striker 33803 | -2/Protoforge | Spotted Striker 33803 | -2/Protoforge | Destroyed Striker 33805 | -2/Protoforge | Destroyed Striker 33819 | -2/Protoforge | Identified Exp. ECM Suite 33859 | -2/Protoforge | Identified Terrabomb 33859 | -2/Protoforge | Used Terrabomb 33859 | -2/Protoforge | Additional patrols dispatched to research labs 33869 | -2/Protoforge | Spotted V433-v 33870 | -2/Protoforge | Spotted V128-h 33881 | -2/Protoforge | Spotted V667-w 33890 | -2/Protoforge | Spotted V898-q 33893 | -2/Protoforge | Found Cep. Energy Mantle 33897 | -2/Protoforge | Destroyed V898-q 33934 | -2/Protoforge | Found Faulty Cep. Energy Mantle 33959 | -2/Protoforge | Destroyed V128-h 33961 | -2/Protoforge | Destroyed V667-w 33968 | -2/Protoforge | Found Cep. Gyrokinetic System 33973 | -2/Protoforge | Destroyed V433-v 34136 | -2/Protoforge | Spotted Decapitator 34136 | -2/Protoforge | Spotted Decapitator 34254 | -2/Protoforge | System corruption reached 30% 34333 | -2/Protoforge | Spotted Immortal 34333 | -2/Protoforge | Spotted Immortal 34340 | -2/Protoforge | Destroyed Immortal 34344 | -2/Protoforge | Destroyed Immortal 34556 | -2/Protoforge | Destroyed AP7-3 34565 | -2/Protoforge | Destroyed AP7-3 34618 | -2/Protoforge | Found Prototype Processor 34618 | -2/Protoforge | Identified Exp. Target Analyzer 34628 | -2/Protoforge | Found Cep. Thermoelectric Network 34633 | -2/Protoforge | Found Cep. Thermoelectric Network 34638 | -2/Protoforge | Found Faulty Cep. Cloak Mesh 34644 | -2/Protoforge | Found Faulty Cep. Cloak Mesh 34646 | -2/Protoforge | Found Cep. Thermoelectric Network 34677 | -2/Protoforge | Found Prototype Energy Gun 34681 | -2/Protoforge | Identified Enh. Gamma Rifle 34683 | -2/Protoforge | Found Enh. Gamma Rifle 34885 | -2/Protoforge | Spotted Decapitator 34885 | -2/Protoforge | Spotted Decapitator 34887 | -2/Protoforge | Destroyed Decapitator 34896 | -2/Protoforge | Destroyed Decapitator 35073 | -2/Protoforge | Spotted Decapitator 35085 | -2/Protoforge | Destroyed Decapitator 35087 | -2/Protoforge | Destroyed Decapitator 35129 | -2/Protoforge | Destroyed Decapitator 35204 | -2/Protoforge | Found Prototype Storage 35204 | -2/Protoforge | Identified Cep. Antigrav Storage Unit 35212 | -2/Protoforge | Found Prototype Device 35213 | -2/Protoforge | Identified Cep. Matter Streamer 35238 | -2/Protoforge | Found Cep. Matter Streamer 35299 | -2/Protoforge | Spotted V836-x 35310 | -2/Protoforge | Found Cep. NT7 Matterbank 35315 | -2/Protoforge | Found Cep. Chromion Battery 35335 | -2/Protoforge | Destroyed V836-x 35352 | -2/Protoforge | Found Cep. NT7 Matterbank 35366 | -2/Protoforge | Found Cep. Matter Streamer 35451 | -2/Protoforge | Spotted V735-x 35451 | -2/Protoforge | Spotted V031-v 35652 | -2/Protoforge | Spotted Immortal 35652 | -2/Protoforge | Spotted Immortal 35682 | -2/Protoforge | Destroyed Immortal 35691 | -2/Protoforge | Destroyed Immortal 35775 | -2/Protoforge | Spotted Hotshot 35775 | -2/Protoforge | Spotted Hotshot 35775 | -2/Protoforge | Spotted Hotshot 35776 | -2/Protoforge | Spotted Hotshot 35796 | -2/Protoforge | Destroyed Hotshot 35800 | -2/Protoforge | Destroyed Hotshot 35800 | -2/Protoforge | Destroyed Hotshot 35802 | -2/Protoforge | Destroyed Hotshot 35849 | -2/Protoforge | Spotted EXE-6 35851 | -2/Protoforge | Destroyed EXE-6 35857 | -2/Protoforge | Spotted Executioner 35937 | -2/Protoforge | Spotted Immortal 35939 | -2/Protoforge | Spotted Immortal 35942 | -2/Protoforge | Spotted Immortal 35943 | -2/Protoforge | Destroyed Immortal 35947 | -2/Protoforge | Destroyed Immortal 35957 | -2/Protoforge | Destroyed Immortal 36023 | -2/Protoforge | Found Crosscalibrator 36097 | -2/Protoforge | Found Exp. System Purifier 36451 | -2/Protoforge | Spotted Immortal 36470 | -2/Protoforge | Spotted Immortal 36486 | -2/Protoforge | Destroyed Immortal 36491 | -2/Protoforge | Destroyed Immortal 36506 | -2/Protoforge | Spotted Decapitator 36506 | -2/Protoforge | Spotted Decapitator 36506 | -2/Protoforge | Spotted Decapitator 36596 | -2/Protoforge | Destroyed 8 combat bots 36598 | -2/Protoforge | Found Exp. System Purifier 36704 | -2/Protoforge | Spotted Striker 36705 | -2/Protoforge | Spotted Striker 36705 | -2/Protoforge | Destroyed Striker 36706 | -2/Protoforge | Destroyed Striker 36711 | -2/Protoforge | Destroyed Superfortress 36748 | -2/Protoforge | Found Prototype Protection 36758 | -2/Protoforge | Found Exp. Force Field 36877 | -2/Protoforge | Destroyed Decapitator 36881 | -2/Protoforge | Destroyed Decapitator 36884 | -2/Protoforge | Destroyed Decapitator 36931 | -2/Protoforge | Found Cep. Zero-point Core 37055 | -2/Protoforge | Found Cep. Zero-point Core 37071 | -2/Protoforge | Found Faulty Cep. Zero-point Core 37166 | -2/Protoforge | Found Cep. Plasma Driver 37206 | -2/Protoforge | Spotted V523-m 37206 | -2/Protoforge | Spotted V106-m 37206 | -2/Protoforge | Spotted V643-f 37206 | -2/Protoforge | Spotted V894-h 37222 | -2/Protoforge | Destroyed V106-m 37222 | -2/Protoforge | Destroyed V523-m 37227 | -2/Protoforge | Destroyed V643-f 37230 | -2/Protoforge | Destroyed V894-h 37269 | -2/Protoforge | Found Cep. NT7 Matterbank 37366 | -2/Protoforge | Found Corrupted Cep. Plasma Driver 37888 | -2/Protoforge | Identified Subatomic Replicator 37888 | -2/Protoforge | Used Subatomic Replicator to replicate Ovr. Railgun 37898 | -2/Protoforge | Found Transdimensional Reconstructor 38067 | -2/Protoforge | Spotted Immortal 38078 | -2/Protoforge | Destroyed Immortal 38086 | -2/Protoforge | Spotted V519-a 38095 | -2/Protoforge | Destroyed V735-x 38097 | -2/Protoforge | Destroyed V031-v 38101 | -2/Protoforge | Destroyed V519-a 38258 | -2/Protoforge | Spotted Executioner 38258 | -2/Protoforge | Spotted Executioner 38259 | -2/Protoforge | Destroyed Executioner 38261 | -2/Protoforge | Destroyed Executioner 38286 | -2/Protoforge | Found Exp. Targeting Computer 38323 | -2/Protoforge | Spotted Striker 38323 | -2/Protoforge | Spotted Executioner 38324 | -2/Protoforge | Destroyed Striker 38325 | -2/Protoforge | Destroyed Executioner 38466 | -2/Protoforge | Spotted Immortal 38466 | -2/Protoforge | Spotted Immortal 38469 | -2/Protoforge | Spotted Hotshot 38469 | -2/Protoforge | Spotted Hotshot 38469 | -2/Protoforge | Destroyed Immortal 38471 | -2/Protoforge | Destroyed Hotshot 38471 | -2/Protoforge | Destroyed Hotshot 38472 | -2/Protoforge | Destroyed Immortal 38496 | -2/Protoforge | Discovered exit to Access (range 10) 38518 | -2/Protoforge | Entered Access 38518 | -1/Access | Evolved 2 slots: Utility x2 38518 | -1/Access | Identified Centrium Heavy Armor Plating 38768 | -1/Access | First assault squad dispatched 39628 | -1/Access | Destroyed 11 combat bots 39973 | -1/Access | High security lockdown imminent 40053 | -1/Access | High security lockdown engaged 40278 | -1/Access | Spotted Investigator 40279 | -1/Access | Destroyed Investigator 40280 | -1/Access | Spotted Striker 40281 | -1/Access | Destroyed Striker 40302 | -1/Access | Destroyed 8 combat bots 40486 | -1/Access | Spotted Executioner 40486 | -1/Access | Spotted Executioner 40486 | -1/Access | Spotted Striker 40486 | -1/Access | Destroyed Executioner 40486 | -1/Access | Destroyed Striker 40488 | -1/Access | Destroyed Executioner 40509 | -1/Access | Spotted Striker 40509 | -1/Access | Spotted Striker 40510 | -1/Access | Destroyed Striker 40511 | -1/Access | Destroyed Striker 40547 | -1/Access | Spotted Striker 40547 | -1/Access | Destroyed Striker 40616 | -1/Access | Destroyed Executioner 40629 | -1/Access | Destroyed Executioner 40651 | -1/Access | Destroyed 64 combat bots 40682 | -1/Access | Spotted Striker 40683 | -1/Access | Destroyed Striker 40705 | -1/Access | Found Exp. Core Analyzer 40844 | -1/Access | Destroyed Striker 40845 | -1/Access | Destroyed Executioner 40845 | -1/Access | Destroyed Executioner 40862 | -1/Access | Spotted Executioner 40862 | -1/Access | Spotted Executioner 40866 | -1/Access | Destroyed Executioner 40866 | -1/Access | Destroyed Executioner 40868 | -1/Access | Spotted Striker 40868 | -1/Access | Destroyed Striker 40891 | -1/Access | Destroyed 29 combat bots 40938 | -1/Access | Spotted Striker 40938 | -1/Access | Spotted Executioner 40938 | -1/Access | Spotted Striker 40938 | -1/Access | Destroyed Striker 40939 | -1/Access | Destroyed Striker 40939 | -1/Access | Destroyed Executioner 41048 | -1/Access | Spotted Striker 41048 | -1/Access | Spotted Executioner 41048 | -1/Access | Destroyed Striker 41049 | -1/Access | Destroyed Executioner 41070 | -1/Access | Destroyed 9 combat bots 41155 | -1/Access | Spotted Executioner 41155 | -1/Access | Spotted Striker 41155 | -1/Access | Destroyed Executioner 41156 | -1/Access | Destroyed Striker 41156 | -1/Access | Spotted Striker 41157 | -1/Access | Spotted Striker 41158 | -1/Access | Destroyed Striker 41158 | -1/Access | Destroyed Striker 41208 | -1/Access | Spotted Executioner 41208 | -1/Access | Destroyed Executioner 41220 | -1/Access | Spotted Striker 41220 | -1/Access | Spotted Executioner 41220 | -1/Access | Destroyed Executioner 41220 | -1/Access | Destroyed Striker 41260 | -1/Access | Destroyed 22 combat bots 41316 | -1/Access | Scanned by Researcher 41316 | -1/Access | Spotted Investigator 41316 | -1/Access | Destroyed Investigator 41348 | -1/Access | Destroyed 17 combat bots 41373 | -1/Access | Destroyed Striker 41373 | -1/Access | Spotted Executioner 41374 | -1/Access | Destroyed Executioner 41423 | -1/Access | Destroyed Executioner 41423 | -1/Access | Destroyed Executioner 41444 | -1/Access | Destroyed 13 combat bots 41488 | -1/Access | Destroyed Striker 41488 | -1/Access | Destroyed Striker 41515 | -1/Access | Destroyed Executioner 41515 | -1/Access | Spotted Striker 41516 | -1/Access | Destroyed Striker 41564 | -1/Access | Destroyed 27 combat bots 41583 | -1/Access | Sterilization system engaged 41663 | -1/Access | Spotted Executioner 41663 | -1/Access | Destroyed Executioner 41665 | -1/Access | Spotted Executioner 41665 | -1/Access | Destroyed Executioner 41666 | -1/Access | Destroyed Investigator 41708 | -1/Access | Destroyed 13 combat bots 41883 | -1/Access | Ambient heat levels rising (+10) 41953 | -1/Access | Spotted Striker 41953 | -1/Access | Spotted Striker 41958 | -1/Access | Destroyed Striker 41959 | -1/Access | Destroyed Striker 41971 | -1/Access | Spotted Striker 41971 | -1/Access | Spotted Striker 41971 | -1/Access | Destroyed Striker 41972 | -1/Access | Destroyed Striker 41993 | -1/Access | Destroyed 8 combat bots 42033 | -1/Access | Ambient heat levels rising (+10) 42183 | -1/Access | Ambient heat levels rising (+10) 42333 | -1/Access | Ambient heat levels rising (+10) 42414 | -1/Access | Destroyed 7 combat bots 42483 | -1/Access | Ambient heat levels rising (+10) 42633 | -1/Access | Ambient heat levels rising (+10) 42783 | -1/Access | Ambient heat levels rising (+10) 42933 | -1/Access | Ambient heat levels rising (+10) 43083 | -1/Access | Ambient heat levels rising (+10) 43163 | -1/Access | Spotted B-99 Colossus 43173 | -1/Access | Destroyed B-99 Colossus 43201 | -1/Access | Found Prototype Ballistic Gun 43207 | -1/Access | Found Prototype Ballistic Gun 43208 | -1/Access | Identified Multirail (x2) 43233 | -1/Access | Ambient heat levels rising (+10) 43251 | -1/Access | Spotted B-99 Colossus 43253 | -1/Access | Destroyed B-99 Colossus 43383 | -1/Access | Ambient heat levels rising (+10) 43533 | -1/Access | Ambient heat levels rising (+10) 43683 | -1/Access | Ambient heat levels rising (+10) 43711 | -1/Access | Energy Cycler disabled 43833 | -1/Access | Ambient heat levels rising (+10) 43973 | -1/Access | Discovered new exit (range 10) 43983 | -1/Access | Ambient heat levels rising (+10) 44029 | -1/Access | Entered Command 44279 | -1/Command | First assault squad dispatched 44487 | -1/Command | Destroyed 10 combat bots 44807 | -1/Command | Spotted Executioner 44809 | -1/Command | Destroyed Executioner 44812 | -1/Command | Spotted Executioner 44814 | -1/Command | Destroyed Executioner 44863 | -1/Command | Destroyed 10 combat bots 44865 | -1/Command | High security lockdown imminent 44945 | -1/Command | High security lockdown engaged 45004 | -1/Command | Destroyed 7 combat bots 45057 | -1/Command | Spotted Executioner 45059 | -1/Command | Spotted Executioner 45059 | -1/Command | Destroyed Executioner 45059 | -1/Command | Destroyed Executioner 45096 | -1/Command | Destroyed 20 combat bots 45385 | -1/Command | Spotted Striker 45385 | -1/Command | Destroyed Executioner 45386 | -1/Command | Destroyed Striker 45416 | -1/Command | Destroyed 9 combat bots 45425 | -1/Command | Spotted Investigator 45429 | -1/Command | Destroyed Investigator 45452 | -1/Command | Destroyed 10 combat bots 45538 | -1/Command | Destroyed Executioner 45540 | -1/Command | Spotted Striker 45541 | -1/Command | Destroyed Striker 45545 | -1/Command | Destroyed Executioner 45545 | -1/Command | Spotted Striker 45545 | -1/Command | Spotted Striker 45546 | -1/Command | Destroyed Striker 45546 | -1/Command | Destroyed Striker 45568 | -1/Command | Destroyed 36 combat bots 45651 | -1/Command | Destroyed 11 combat bots 45847 | -1/Command | Spotted Investigator 45849 | -1/Command | Destroyed Investigator 45869 | -1/Command | Destroyed 7 combat bots 46045 | -1/Command | Spotted Striker 46045 | -1/Command | Spotted Striker 46045 | -1/Command | Destroyed Striker 46046 | -1/Command | Destroyed Striker 46444 | -1/Command | Spotted Striker 46445 | -1/Command | Destroyed Striker 47574 | -1/Command | Spotted M Guard 47574 | -1/Command | Spotted M Guard 47574 | -1/Command | Spotted Combat Programmer 47583 | -1/Command | Spotted Combat Programmer 47587 | -1/Command | Destroyed M Guard 47589 | -1/Command | Destroyed M Guard 47590 | -1/Command | Destroyed Combat Programmer 47590 | -1/Command | Destroyed Combat Programmer 47590 | -1/Command | All MAIN.C guards destroyed 47670 | -1/Command | Found Prototype Device 47671 | -1/Command | Identified AEGIS Remote Shield 47760 | -1/Command | Met MAIN.C 47760 | -1/Command | 0b10 Conduit disabled 47761 | -1/Command | Destroyed MAIN.C Shell 47761 | -1/Command | MAIN.C activated Command garrisons 47764 | -1/Command | Destroyed MAIN.C 47785 | -1/Command | Discovered new exit (range 37) 47785 | -1/Command | Discovered new exit (range 106) 47785 | -1/Command | Extracted map data and part IDs from MAIN.C's data core 47789 | -1/Command | System corruption reached 10% 47802 | -1/Command | Found Centrium Heavy Armor Plating 47927 | -1/Command | Found Exp. System Purifier 48789 | -1/Command | Found Centrium Heavy Armor Plating 48794 | -1/Command | Found Vortex Chain Reactor 49006 | -1/Command | Found Exp. Targeting Computer 49025 | -1/Command | Found Exp. Targeting Computer 49900 | -1/Command | Warped through subspace to slip node 49900 | -1/Command | Discovered new exit (range 4) 49907 | -1/Command | Entered Access_0 49908 | -1/Access_0 | Met Architect 49910 | -1/Access_0 | Architect warped through subspace 49912 | -1/Access_0 | Destroyed A8 49942 | -1/Access_0 | Architect warped through subspace 49987 | -1/Access_0 | Architect warped through subspace 50016 | -1/Access_0 | Architect warped through subspace 50044 | -1/Access_0 | Architect warped through subspace 50087 | -1/Access_0 | Architect warped through subspace 50119 | -1/Access_0 | Architect warped through subspace 50123 | -1/Access_0 | A6 warped into view 50126 | -1/Access_0 | Destroyed A6 50181 | -1/Access_0 | Architect warped through subspace 50199 | -1/Access_0 | Found Prototype Device 50200 | -1/Access_0 | Identified Desublimator 50205 | -1/Access_0 | Found Exp. Phase Shifter 50206 | -1/Access_0 | Architect warped through subspace 50225 | -1/Access_0 | Subspace Access Node disabled 50230 | -1/Access_0 | Architect warped through subspace 50249 | -1/Access_0 | Architect warped through subspace 50266 | -1/Access_0 | Architect warped through subspace 50281 | -1/Access_0 | Architect warped through subspace 50285 | -1/Access_0 | Subspace Access Node disabled 50313 | -1/Access_0 | Architect warped through subspace 50364 | -1/Access_0 | Architect warped through subspace 50385 | -1/Access_0 | Subspace Access Node disabled 50405 | -1/Access_0 | Found Desublimator 50427 | -1/Access_0 | A5 warped into view 50461 | -1/Access_0 | Destroyed A5 50495 | -1/Access_0 | Architect warped through subspace 50507 | -1/Access_0 | Architect warped through subspace 50519 | -1/Access_0 | Architect warped through subspace 50531 | -1/Access_0 | Architect warped through subspace 50547 | -1/Access_0 | Architect warped through subspace 50561 | -1/Access_0 | Architect warped through subspace 50571 | -1/Access_0 | Architect warped through subspace 50589 | -1/Access_0 | Lost 4 parts (1u3w) 50601 | -1/Access_0 | Subspace Access Node disabled 50642 | -1/Access_0 | Destroyed Architect 50643 | -1/Access_0 | Architect triggered a singularity event 50644 | -1/Access_0 | Released all parts (17) 50646 | -1/Access_0 | Found Hpw. Transdimensional Reconstructor 50646 | -1/Access_0 | Warped through subspace to slip node 50646 | -1/Access_0 | Discovered new exit (range 8) 50647 | -1/Access_0 | Core integrity fell below 50% 50650 | *** | Escaped singularity! Last Messages --------------- 50644_ Released Cep. Antigrav Storage Unit. 50644_ Released Vortex Chain Reactor. 50644_ Released Desublimator. 50644_ Released Ovr. Railgun. 50644_ Released Hvy. Quantum Rifle. 50644_ Released Adv. Weapon Cycler. 50644_ Released Cep. Plasma Driver. 50644_ Released Exp. Core Analyzer. 50644_ Released Exp. Heavy Siege Treads. 50645_ A0_COM: 9. 50645_ R=JIW:VWMMXKUZQK VPH S 50645_ Acquired 174 matter. 50646_ A0_COM: 8. 50646_ Acquired Hpw. Transdimensional Reconstructor. 50646_ Warped through subspace, drawn to slip node. 50646_ EXIT=FOUND 50647_ A0_COM: 7. 50648_ A0_COM: 6. 50649_ A0_COM: 5. 50650_ A0_COM: 4. Map ----- +----------------------------------------------------+ | | | | | | | | | | | | | | | | | | | | | | | | | | | | | | | | | ?????????????????????????????????????????????????? | | ?????????????????????????????????????????????????? | | ?????????????????????????????????????????????????? | | ?????????????????????????????????????????????????? | | ?????????????????????????????????????????????????? | | ?????????????????????????????????????????????????? | | ????????????????????????###??????????????????????? | | ???????????????????????## ##?????????????????????? | | ???????????????????????# #?????????????????????? | | ???????????????????????# @ #?????????????????????? | | ??????????????????????## #?????????????????????? | | ??????????????????????# #?????????????????????? | | ??????????????????????# ##?????????????????????? | | ??????????????????????## #?????????????????????? | | ??????????????????????# #?????????????????????? | | ??????????????????????# ##?????????????????????? | | ??????????????????????# < #?????????????????????? | | ??????????????????????# ##?????????????????????? | | ??????????????????????## #??????????????????????? | | ???????????????????????####??????????????????????? | | ?????????????????????????????????????????????????? | | ?????????????????????????????????????????????????? | | ?????????????????????????????????????????????????? | | ?????????????????????????????????????????????????? | | ?????????????????????????????????????????????????? | | ?????????????????????????????????????????????????? | | ?????????????????????????????????????????????????? | | ?????????????????????????????????????????????????? | | ?????????????????????????????????????????????????? | | ?????????????????????????????????????????????????? | | ?????????????????????????????????????????????????? | | ?????????????????????????????????????????????????? | | ?????????????????????????????????????????????????? | | ?????????????????????????????????????????????????? | +----------------------------------------------------+ Best States ------------- Heat Dissipation 90 Coolant Potential 220 Energy Generation 55 Energy Capacity 1200 Matter Stores 300 Matter Capacity 1050 Sight Range 16 Robot Scan Range 18 Terrain Scan Range 24 Terrain Scan Density 10 Cloak Strength 6 Armor Coverage 1200 Resistance: EM 15 Weapon Shielding 90 Weapon Cycling 25 Phase Shifting 20 Evasion (%) 60 Targeting Accuracy 24 Target Analysis 10 Core Analysis 12 Recoil Reduction 4 Kinecelleration 66 Salvage Targeting 4 Offensive Hacking 12 Item Schematics ----------------- Adv. Coolant Injector | -5/Factory | Hacked Adv. Gravity Neutralizer | -3/Testing | Archive Com. Particle Reactor | -3/Testing | Archive Multireflex Exoskeleton | -2/Protoforge | Archive Exp. System Shield | -2/Protoforge | Archive Centrium Greatsword | -2/Protoforge | Archive Com. Linear Accelerator | -2/Protoforge | Archive Exp. EM Shield | -2/Protoforge | Archive Imp. Q-thruster | -2/Protoforge | Archive Stealth Drone Bay | -2/Protoforge | Archive Cld. Antigrav System | -2/Protoforge | Archive Centrium Heavy Treads | -2/Protoforge | Archive Exp. Signal Interpreter | -2/Protoforge | Archive Exp. Targeting Computer | -2/Protoforge | Archive Cld. Linear Gravjet | -2/Protoforge | Archive Robot Schematics ------------------ E-15 Imp | -2/Protoforge | Archive G-73 Enforcer | -2/Protoforge | Archive R-10 Processor | -2/Protoforge | Archive Fabricated ------------ Adv. Coolant Injector | x2 | -4/Factory Repaired ---------- Lgt. Treads | 40% | -10/Materials Huge Storage Unit | 51% | -9/Materials Hvy. Assault Rifle | 36% | -9/Storage Lyr. Light Armor Plating | 1% | -5/Factory Imp. Treads | 9% | -5/Factory Imp. Treads | 64% | -5/Factory Enh. Coil Gun | 22% | -3/Testing Adv. KE Penetrator | 24% | -3/Testing Adv. KE Penetrator | 8% | -2/Quarantine Alien Tech Used ----------------- Terrabomb Subatomic Replicator Transdimensional Reconstructor High-powered Transdimensional Reconstructor Achievements -------------- None Challenges ------------ None Game ------ Seed AlertCoolantRefractor Manual? 0 Play Time 06:51:36 Cumulative 2184.0 hours Start 2025.05.30 @ 15:32:23 End 2025.05.30 @ 23:17:48 Sessions 1 Manual Loads 0 Difficulty Rogue Special Mode None Game No. 733 Rogue 733 Adventurer 0 Explorer 0 Win Type 6 Total 165 Types 31/17/65/7/1/2/40/1/1/0 Lore% 97 Gallery% 95 Achievement% 88 Wizard Run 0 Options --------- Layout 0 ASCII 0 Keyboard 0 Movement Numpad Keybinds 0 Fullscreen 2 Font 24/Smallcaps Map View 76x50 Zoom Use 0% Tactical HUD 1 Map Filters NONE Filters NONE Steam 1 RUN: e7a56bf2-798d-4a5d-939b-521d4362d5a5